Department Family,Entity,Date Paid,Expense Type,Expense Area,Supplier,Transaction Number,Amount (�),Supplier VAT Registration Number
BEIS,Met Office,2020-01-24,11 SERVICES,OPERATIONS,494 CONSULTING,437877,3900,332819305
BEIS,Met Office,2020-01-09,11 SERVICES,TECHNOLOGY,A I MEDIA,437047,294,994262974
BEIS,Met Office,2020-01-07,06 ACCOMMODATION,CHIEF FINANCIAL OFFICER,ABOVE THE REST COMMERCIAL CLEANING LTD,437056,565,166969348
BEIS,Met Office,2020-01-13,11 SERVICES,GOVERNMENT SERVICES,ACCELERATION EMARKETING,437290,3202.51,848940776
BEIS,Met Office,2020-01-07,FIXTURE & FITTINGS,CHIEF FINANCIAL OFFICER,ACOUSTICLAD (INTERIORS) LTD,436780,5837.5,585684483
BEIS,Met Office,2020-01-24,07 EQUIPMENT,OPERATIONS,ADNACO TECHNOLOGY,373316,3294,-
BEIS,Met Office,2020-01-24,07 EQUIPMENT,OPERATIONS,ADNACO TECHNOLOGY,373744,-3294,-
BEIS,Met Office,2020-01-07,06 ACCOMMODATION,CHIEF FINANCIAL OFFICER,ADT FIRE AND SECURITY PLC,437057,402,413633086
BEIS,Met Office,2020-01-07,06 ACCOMMODATION,CHIEF FINANCIAL OFFICER,ADT FIRE AND SECURITY PLC,437061,336.8,413633086
BEIS,Met Office,2020-01-13,06 ACCOMMODATION,CHIEF FINANCIAL OFFICER,ADT FIRE AND SECURITY PLC,437351,1045.24,413633086
BEIS,Met Office,2020-01-24,06 ACCOMMODATION,CHIEF FINANCIAL OFFICER,AFFINITY WATER LIMITED,417977,1500,600431504
BEIS,Met Office,2020-01-24,06 ACCOMMODATION,CHIEF FINANCIAL OFFICER,AFFINITY WATER LIMITED,417978,1500,600431504
BEIS,Met Office,2020-01-24,06 ACCOMMODATION,CHIEF FINANCIAL OFFICER,AFFINITY WATER LIMITED,420192,-3000,600431504
BEIS,Met Office,2020-01-21,03 STAFF COSTS T&S,OPERATIONS,AIRPORT CAR RENTALS LTD,437638,320,-
BEIS,Met Office,2020-01-24,11 SERVICES,BUSINESS GROUP,AIRPORT OPERATORS ASSOCIATION,437901,3100,743855311
BEIS,Met Office,2020-01-09,11 SERVICES,TECHNOLOGY,AKAMAI TECHNOLOGIES LTD,437289,4248.48,745091237
BEIS,Met Office,2020-01-09,11 SERVICES,TECHNOLOGY,AKAMAI TECHNOLOGIES LTD,437289,22304.55,745091237
BEIS,Met Office,2020-01-14,11 SERVICES,BUSINESS GROUP,ALISON MOULDING,437306,720,-
BEIS,Met Office,2020-01-17,11 SERVICES,CHIEF FINANCIAL OFFICER,ALLSTAR BUSINESS SOLUTIONS LTD,437639,2678.06,747880191
BEIS,Met Office,2020-01-24,13 MISCELLANEOUS,OTHER,ALPHABET (GB) LTD,431421,1711,572417244
BEIS,Met Office,2020-01-24,13 MISCELLANEOUS,OTHER,ALPHABET (GB) LTD,431706,-1711,572417244
BEIS,Met Office,2020-01-16,11 SERVICES,OPERATIONS,AM LOGISTICS LTD,423823,750,801103503
BEIS,Met Office,2020-01-08,11 SERVICES,TECHNOLOGY,AMAZON WEB SERVICES INC.,9630,11395.75,N/A
BEIS,Met Office,2020-01-20,13 MISCELLANEOUS,CHIEF FINANCIAL OFFICER,ANTRIM HILLS SPRING WATER CO LTD,437647,21,517173455
BEIS,Met Office,2020-01-13,11 SERVICES,CHIEF FINANCIAL OFFICER,ANVIL MOBILE LIMITED,437347,336.19,981686175
BEIS,Met Office,2020-01-13,11 SERVICES,OPERATIONS,APPLIED SATELLITE TECHNOLOGY SYSTEMS LTD,418147,31.6,720108683
BEIS,Met Office,2020-01-10,11 SERVICES,OPERATIONS,APPLIED SATELLITE TECHNOLOGY SYSTEMS LTD,435349,103.2,720108683
BEIS,Met Office,2020-01-14,12 INTERNATIONAL,OPERATIONS,APPLIED SATELLITE TECHNOLOGY SYSTEMS LTD,435586,32.81,720108683
BEIS,Met Office,2020-01-23,11 SERVICES,OPERATIONS,APPLIED SATELLITE TECHNOLOGY SYSTEMS LTD,437709,9510.31,720108683
BEIS,Met Office,2020-01-21,12 INTERNATIONAL,OPERATIONS,APPLIED SATELLITE TECHNOLOGY SYSTEMS LTD,437710,32.4,720108683
BEIS,Met Office,2020-01-23,11 SERVICES,OPERATIONS,APPLIED SATELLITE TECHNOLOGY SYSTEMS LTD,437711,296.1,720108683
BEIS,Met Office,2020-01-21,11 SERVICES,OPERATIONS,APPLIED SATELLITE TECHNOLOGY SYSTEMS LTD,437712,134.17,720108683
BEIS,Met Office,2020-01-29,11 SERVICES,OPERATIONS,APPLIED SATELLITE TECHNOLOGY SYSTEMS LTD,437713,32.4,720108683
BEIS,Met Office,2020-01-22,11 SERVICES,OPERATIONS,APPLIED SATELLITE TECHNOLOGY SYSTEMS LTD,437714,437.99,720108683
BEIS,Met Office,2020-01-20,11 SERVICES,GOVERNMENT SERVICES,Arup,437462,51700,524461265
BEIS,Met Office,2020-01-23,11 SERVICES,OPERATIONS,ASPIRE EUROPE LTD,437863,2500,841124953
BEIS,Met Office,2020-01-16,11 SERVICES,OPERATIONS,AST CONNECTIONS LTD,435583,139.29,720108683
BEIS,Met Office,2020-01-10,11 SERVICES,TECHNOLOGY,AUTOMATION LOGIC,437291,51155,985044595
BEIS,Met Office,2020-01-22,11 SERVICES,OPERATIONS,"AXYS TECHNOLOGIES, INC",9669,115.66,-
BEIS,Met Office,2020-01-10,11 SERVICES,GOVERNMENT SERVICES,"BASILIO SOZINHO CUBULA SERVI�OS, E.I.",9656,2856.21,N/A
BEIS,Met Office,2020-01-22,11 SERVICES,GOVERNMENT SERVICES,"BASILIO SOZINHO CUBULA SERVI�OS, E.I.",9668,2939.08,N/A
BEIS,Met Office,2020-01-29,11 SERVICES,GOVERNMENT SERVICES,"BASILIO SOZINHO CUBULA SERVI�OS, E.I.",9675,2866.31,N/A
BEIS,Met Office,2020-01-07,06 ACCOMMODATION,CHIEF FINANCIAL OFFICER,Belfast International Airport Ltd,436934,238.75,617777601
BEIS,Met Office,2020-01-09,06 ACCOMMODATION,CHIEF FINANCIAL OFFICER,Belfast International Airport Ltd,437211,4288.96,617777601
BEIS,Met Office,2020-01-14,06 ACCOMMODATION,CHIEF FINANCIAL OFFICER,Belfast International Airport Ltd,437359,23953,617777601
BEIS,Met Office,2020-01-24,10 EQUIPMENT MAINTENANCE,TECHNOLOGY,BENCHMARK CANADA,410007,1888,N/A
BEIS,Met Office,2020-01-24,10 EQUIPMENT MAINTENANCE,TECHNOLOGY,BENCHMARK CANADA,418697,-1888,N/A
BEIS,Met Office,2020-01-16,11 SERVICES,CORPORATE,BI-DESIGN EUROPE LTD T/A HOME,437087,5755.13,-
BEIS,Met Office,2020-01-16,11 SERVICES,CORPORATE,BI-DESIGN EUROPE LTD T/A HOME,437448,-5755.13,-
BEIS,Met Office,2020-01-20,11 SERVICES,CORPORATE,BI-DESIGN EUROPE LTD T/A HOME,437449,650,-
BEIS,Met Office,2020-01-20,11 SERVICES,CORPORATE,BI-DESIGN EUROPE LTD T/A HOME,437449,4587.13,-
BEIS,Met Office,2020-01-07,06 ACCOMMODATION,CHIEF FINANCIAL OFFICER,Biffa Waste Services Ltd,437131,6.9,537911627
BEIS,Met Office,2020-01-07,06 ACCOMMODATION,CHIEF FINANCIAL OFFICER,Biffa Waste Services Ltd,437132,7.5,537911627
BEIS,Met Office,2020-01-17,11 SERVICES,TECHNOLOGY,BJSS LIMITED,437633,7137.5,613295452
BEIS,Met Office,2020-01-24,11 SERVICES,OPERATIONS,BLF (UK) LTD,383009,2583,834562226
BEIS,Met Office,2020-01-24,11 SERVICES,OPERATIONS,BLF (UK) LTD,400214,-2583,834562226
BEIS,Met Office,2020-01-29,11 SERVICES,CORPORATE,BLOOMREACH B.V.,437512,10960,NL815260076B01
BEIS,Met Office,2020-01-29,11 SERVICES,CORPORATE,BLOOMREACH B.V.,437512,20000,NL815260076B01
BEIS,Met Office,2020-01-29,11 SERVICES,TECHNOLOGY,BLOOMREACH B.V.,437512,2020,NL815260076B01
BEIS,Met Office,2020-01-29,11 SERVICES,TECHNOLOGY,BLOOMREACH B.V.,437512,80900,NL815260076B01
BEIS,Met Office,2020-01-08,06 ACCOMMODATION,CHIEF FINANCIAL OFFICER,BPC ENERGY LTD,435247,867.74,177265088
BEIS,Met Office,2020-01-15,06 ACCOMMODATION,CHIEF FINANCIAL OFFICER,BRITISH GAS TRADING LTD,437468,79.99,684966762
BEIS,Met Office,2020-01-30,06 ACCOMMODATION,CHIEF FINANCIAL OFFICER,BRITISH GAS TRADING LTD,437643,7356.78,684966762
BEIS,Met Office,2020-01-10,11 SERVICES,CHIEF FINANCIAL OFFICER,BT CONFERENCING,437284,212.19,245719348
BEIS,Met Office,2020-01-24,11 SERVICES,CHIEF FINANCIAL OFFICER,BT GLOBAL SERVICES,437705,15279.57,245719348
BEIS,Met Office,2020-01-09,11 SERVICES,CHIEF FINANCIAL OFFICER,BT PLC,436951,3632.24,245719348
BEIS,Met Office,2020-01-13,11 SERVICES,CHIEF FINANCIAL OFFICER,BT PLC,437062,15303.24,245719348
BEIS,Met Office,2020-01-22,11 SERVICES,CHIEF FINANCIAL OFFICER,BT PLC,437704,32670.79,245719348
BEIS,Met Office,2020-01-30,11 SERVICES,CHIEF FINANCIAL OFFICER,BT PLC,437966,14715.12,245719348
BEIS,Met Office,2020-01-22,06 ACCOMMODATION,CHIEF FINANCIAL OFFICER,BUSINESS STREAM,437722,264.03,945850885
BEIS,Met Office,2020-01-07,11 SERVICES,TECHNOLOGY,CACI LTD,436721,-224,380609841
BEIS,Met Office,2020-01-07,11 SERVICES,STRATEGIC INVESTMENT,CACI LTD,437080,67033.75,380609841
BEIS,Met Office,2020-01-13,11 SERVICES,GOVERNMENT SERVICES,CACI LTD,437081,29554.96,380609841
BEIS,Met Office,2020-01-13,11 SERVICES,GOVERNMENT SERVICES,CACI LTD,437081,7555.25,380609841
BEIS,Met Office,2020-01-07,11 SERVICES,TECHNOLOGY,CACI LTD,437133,9200.2,380609841
BEIS,Met Office,2020-01-07,11 SERVICES,BUSINESS GROUP,CACI LTD,437134,12140,380609841
BEIS,Met Office,2020-01-07,06 ACCOMMODATION,CHIEF FINANCIAL OFFICER,CALOR GAS LIMITED,437063,304.36,207610984
BEIS,Met Office,2020-01-22,06 ACCOMMODATION,CHIEF FINANCIAL OFFICER,CALOR GAS LIMITED,437694,34.25,207610984
BEIS,Met Office,2020-01-22,06 ACCOMMODATION,CHIEF FINANCIAL OFFICER,CALOR GAS LIMITED,437695,19.61,207610984
BEIS,Met Office,2020-01-23,06 ACCOMMODATION,CHIEF FINANCIAL OFFICER,CALOR GAS LIMITED,437697,34.25,207610984
BEIS,Met Office,2020-01-23,06 ACCOMMODATION,CHIEF FINANCIAL OFFICER,CALOR GAS LIMITED,437698,34.25,207610984
BEIS,Met Office,2020-01-22,06 ACCOMMODATION,CHIEF FINANCIAL OFFICER,CALOR GAS LIMITED,437699,34.25,207610984
BEIS,Met Office,2020-01-22,06 ACCOMMODATION,CHIEF FINANCIAL OFFICER,CALOR GAS LIMITED,437700,49.18,207610984
BEIS,Met Office,2020-01-22,06 ACCOMMODATION,CHIEF FINANCIAL OFFICER,CALOR GAS LIMITED,437701,34.25,207610984
BEIS,Met Office,2020-01-28,06 ACCOMMODATION,CHIEF FINANCIAL OFFICER,CALOR GAS LIMITED,437970,862.12,207610984
BEIS,Met Office,2020-01-28,06 ACCOMMODATION,CHIEF FINANCIAL OFFICER,CALOR GAS LIMITED,437971,451.8,207610984
BEIS,Met Office,2020-01-21,11 SERVICES,GOVERNMENT SERVICES,CAMBRIDGE ECONOMETRICS LTD,437660,7116,1916825
BEIS,Met Office,2020-01-07,STOCK,OPERATIONS,Campbell Scientific Ltd,437089,0,428453933
BEIS,Met Office,2020-01-07,STOCK,OPERATIONS,Campbell Scientific Ltd,437089,9135,428453933
BEIS,Met Office,2020-01-07,11 SERVICES,OPERATIONS,Campbell Scientific Ltd,437089,21,428453933
BEIS,Met Office,2020-01-10,INFORMATION TECHNOLOGY,STRATEGIC INVESTMENT,Campbell Scientific Ltd,437218,26371.5,428453933
BEIS,Met Office,2020-01-27,INFORMATION TECHNOLOGY,STRATEGIC INVESTMENT,Campbell Scientific Ltd,437858,1827,428453933
BEIS,Met Office,2020-01-27,INFORMATION TECHNOLOGY,STRATEGIC INVESTMENT,Campbell Scientific Ltd,437858,9369,428453933
BEIS,Met Office,2020-01-27,INFORMATION TECHNOLOGY,STRATEGIC INVESTMENT,Campbell Scientific Ltd,437858,5472,428453933
BEIS,Met Office,2020-01-27,INFORMATION TECHNOLOGY,STRATEGIC INVESTMENT,Campbell Scientific Ltd,437858,1242,428453933
BEIS,Met Office,2020-01-27,INFORMATION TECHNOLOGY,STRATEGIC INVESTMENT,Campbell Scientific Ltd,437860,1233,428453933
BEIS,Met Office,2020-01-27,INFORMATION TECHNOLOGY,STRATEGIC INVESTMENT,Campbell Scientific Ltd,437860,5787,428453933
BEIS,Met Office,2020-01-27,11 SERVICES,STRATEGIC INVESTMENT,Campbell Scientific Ltd,437860,294,428453933
BEIS,Met Office,2020-01-27,INFORMATION TECHNOLOGY,STRATEGIC INVESTMENT,Campbell Scientific Ltd,437861,13168.75,428453933
BEIS,Met Office,2020-01-27,INFORMATION TECHNOLOGY,STRATEGIC INVESTMENT,Campbell Scientific Ltd,437882,14038,428453933
BEIS,Met Office,2020-01-07,13 MISCELLANEOUS,CHIEF FINANCIAL OFFICER,CANON UK LTD,437013,9133.45,523797128
BEIS,Met Office,2020-01-14,13 MISCELLANEOUS,CHIEF FINANCIAL OFFICER,CANON UK LTD,437282,1367.88,523797128
BEIS,Met Office,2020-01-14,13 MISCELLANEOUS,CHIEF FINANCIAL OFFICER,CANON UK LTD,437282,29.55,523797128
BEIS,Met Office,2020-01-14,13 MISCELLANEOUS,CHIEF FINANCIAL OFFICER,CANON UK LTD,437282,68.96,523797128
BEIS,Met Office,2020-01-14,13 MISCELLANEOUS,CHIEF FINANCIAL OFFICER,CANON UK LTD,437282,87.92,523797128
BEIS,Met Office,2020-01-14,13 MISCELLANEOUS,CHIEF FINANCIAL OFFICER,CANON UK LTD,437282,66.1,523797128
BEIS,Met Office,2020-01-14,13 MISCELLANEOUS,CHIEF FINANCIAL OFFICER,CANON UK LTD,437282,75.1,523797128
BEIS,Met Office,2020-01-07,11 SERVICES,CHIEF FINANCIAL OFFICER,CARDIFF EXECUTIVE CENTRE LTD,436945,65.46,864497378
BEIS,Met Office,2020-01-23,03 STAFF COSTS T&S,OPERATIONS,CARTUS LTD,437847,137,768489458
BEIS,Met Office,2020-01-27,03 STAFF COSTS T&S,OPERATIONS,CARTUS LTD,437853,727.84,768489458
BEIS,Met Office,2020-01-08,11 SERVICES,OPERATIONS,CATALYST IT,436960,50,978169262
BEIS,Met Office,2020-01-08,11 SERVICES,OPERATIONS,CATALYST IT,436960,340,978169262
BEIS,Met Office,2020-01-08,11 SERVICES,OPERATIONS,CATALYST IT,436960,846.67,978169262
BEIS,Met Office,2020-01-08,06 ACCOMMODATION,CHIEF FINANCIAL OFFICER,CBRE MANAGED SERVICES LTD,437011,146468,853936883
BEIS,Met Office,2020-01-08,06 ACCOMMODATION,CHIEF FINANCIAL OFFICER,CBRE MANAGED SERVICES LTD,437014,29578.05,853936883
BEIS,Met Office,2020-01-07,08 SOFTWARE LICENCES,CHIEF FINANCIAL OFFICER,CEMAR,437003,450,915042161
BEIS,Met Office,2020-01-23,08 SOFTWARE LICENCES,CHIEF FINANCIAL OFFICER,CEMAR,437805,450,915042161
BEIS,Met Office,2020-01-22,11 SERVICES,GOVERNMENT SERVICES,Cgi It Uk Limited,437676,155175,232615194
BEIS,Met Office,2020-01-08,03 STAFF COSTS T&S,OPERATIONS,CHARLIE'S TRAVEL LTD,437026,244,783848277
BEIS,Met Office,2020-01-13,STOCK,OPERATIONS,CHARNWOOD FASTENERS LIMITED,436912,0,355315757
BEIS,Met Office,2020-01-13,STOCK,OPERATIONS,CHARNWOOD FASTENERS LIMITED,436912,2880,355315757
BEIS,Met Office,2020-01-13,11 SERVICES,OPERATIONS,CHARNWOOD FASTENERS LIMITED,436912,55,355315757
BEIS,Met Office,2020-01-13,STOCK,OPERATIONS,CHARNWOOD FASTENERS LIMITED,436938,0,355315757
BEIS,Met Office,2020-01-13,STOCK,OPERATIONS,CHARNWOOD FASTENERS LIMITED,436938,-2880,355315757
BEIS,Met Office,2020-01-13,11 SERVICES,OPERATIONS,CHARNWOOD FASTENERS LIMITED,436938,-55,355315757
BEIS,Met Office,2020-01-13,STOCK,OPERATIONS,CHARNWOOD FASTENERS LIMITED,437241,0,355315757
BEIS,Met Office,2020-01-13,STOCK,OPERATIONS,CHARNWOOD FASTENERS LIMITED,437241,2880,355315757
BEIS,Met Office,2020-01-13,11 SERVICES,OPERATIONS,CHARNWOOD FASTENERS LIMITED,437241,55,355315757
BEIS,Met Office,2020-01-24,06 ACCOMMODATION,CHIEF FINANCIAL OFFICER,City Of Edinburgh Council,390963,5,663795391
BEIS,Met Office,2020-01-24,06 ACCOMMODATION,CHIEF FINANCIAL OFFICER,City Of Edinburgh Council,394823,-5,663795391
BEIS,Met Office,2020-01-29,13 MISCELLANEOUS,GOVERNMENT SERVICES,CLARIVATE ANALYTICS (US) LLC,9653,3666.19,EU826000773
BEIS,Met Office,2020-01-29,13 MISCELLANEOUS,SCIENCE,CLARIVATE ANALYTICS (US) LLC,9653,91277.8,EU826000773
BEIS,Met Office,2020-01-07,06 ACCOMMODATION,CHIEF FINANCIAL OFFICER,CLEANING MATTERS BEDFORD LTD,437004,572,847592286
BEIS,Met Office,2020-01-24,11 SERVICES,GOVERNMENT SERVICES,Click Performance Limited,411518,4390.86,186425093
BEIS,Met Office,2020-01-24,11 SERVICES,GOVERNMENT SERVICES,Click Performance Limited,412095,-4390.86,186425093
BEIS,Met Office,2020-01-07,11 SERVICES,TECHNOLOGY,CLOUDREACH EUROPE LIMITED,425242,4000,978187168
BEIS,Met Office,2020-01-08,11 SERVICES,TECHNOLOGY,CLOUDREACH EUROPE LIMITED,437205,11364.47,978187168
BEIS,Met Office,2020-01-10,11 SERVICES,TECHNOLOGY,CLOUDREACH EUROPE LIMITED,437346,1324.44,978187168
BEIS,Met Office,2020-01-17,11 SERVICES,OPERATIONS,CLOUDREACH EUROPE LIMITED,437514,7004.05,978187168
BEIS,Met Office,2020-01-15,11 SERVICES,TECHNOLOGY,CLOUDREACH EUROPE LIMITED,437515,7004.05,978187168
BEIS,Met Office,2020-01-15,11 SERVICES,TECHNOLOGY,CLOUDREACH EUROPE LIMITED,437516,4000,978187168
BEIS,Met Office,2020-01-20,11 SERVICES,TECHNOLOGY,CLOUDREACH EUROPE LIMITED,437572,2520,978187168
BEIS,Met Office,2020-01-20,11 SERVICES,TECHNOLOGY,CLOUDREACH EUROPE LIMITED,437619,10860.14,978187168
BEIS,Met Office,2020-01-22,11 SERVICES,TECHNOLOGY,CLOUDREACH EUROPE LIMITED,437783,-2520,978187168
BEIS,Met Office,2020-01-22,11 SERVICES,TECHNOLOGY,CLOUDREACH EUROPE LIMITED,437784,6080,978187168
BEIS,Met Office,2020-01-22,11 SERVICES,TECHNOLOGY,CLOUDREACH EUROPE LIMITED,437784,1030,978187168
BEIS,Met Office,2020-01-09,05 CONSULTANTS,OPERATIONS,CMC PARTNERSHIP CONSULTANCY LTD,437231,14175,305803330
BEIS,Met Office,2020-01-09,05 CONSULTANTS,OPERATIONS,CMC PARTNERSHIP CONSULTANCY LTD,437240,3285,305803330
BEIS,Met Office,2020-01-15,FIXTURE & FITTINGS,CHIEF FINANCIAL OFFICER,CMD LTD,437510,88,927231433
BEIS,Met Office,2020-01-15,FIXTURE & FITTINGS,CHIEF FINANCIAL OFFICER,CMD LTD,437510,106.56,927231433
BEIS,Met Office,2020-01-15,FIXTURE & FITTINGS,CHIEF FINANCIAL OFFICER,CMD LTD,437510,238.59,927231433
BEIS,Met Office,2020-01-15,FIXTURE & FITTINGS,CHIEF FINANCIAL OFFICER,CMD LTD,437510,1170.96,927231433
BEIS,Met Office,2020-01-29,11 SERVICES,OPERATIONS,COLLECTE LOCALISATION SATELLITES (C.L.S.),21169,6854.59,FR95338034390
BEIS,Met Office,2020-01-29,11 SERVICES,OPERATIONS,COLLECTE LOCALISATION SATELLITES (C.L.S.),21170,51.1,FR95338034390
BEIS,Met Office,2020-01-29,11 SERVICES,OPERATIONS,COLLECTE LOCALISATION SATELLITES (C.L.S.),21171,581.65,FR95338034390
BEIS,Met Office,2020-01-22,11 SERVICES,OPERATIONS,COLLECTE LOCALISATION SATELLITES (C.L.S.),21172,177.13,FR95338034390
BEIS,Met Office,2020-01-29,11 SERVICES,OPERATIONS,COLLECTE LOCALISATION SATELLITES (C.L.S.),21184,7329.5,FR95338034390
BEIS,Met Office,2020-01-07,08 SOFTWARE LICENCES,TECHNOLOGY,COMPAREX UK,436969,29568,330883754
BEIS,Met Office,2020-01-07,08 SOFTWARE LICENCES,TECHNOLOGY,COMPAREX UK,436969,84038,330883754
BEIS,Met Office,2020-01-07,07 EQUIPMENT,TECHNOLOGY,COMPUTACENTER (UK) LTD,436982,104.45,490334648
BEIS,Met Office,2020-01-07,07 EQUIPMENT,TECHNOLOGY,COMPUTACENTER (UK) LTD,436982,1422.51,490334648
BEIS,Met Office,2020-01-07,07 EQUIPMENT,TECHNOLOGY,COMPUTACENTER (UK) LTD,436982,886,490334648
BEIS,Met Office,2020-01-07,07 EQUIPMENT,TECHNOLOGY,COMPUTACENTER (UK) LTD,436982,78,490334648
BEIS,Met Office,2020-01-13,INFORMATION TECHNOLOGY,TECHNOLOGY,COMPUTACENTER (UK) LTD,436983,219539.57,490334648
BEIS,Met Office,2020-01-13,INFORMATION TECHNOLOGY,TECHNOLOGY,COMPUTACENTER (UK) LTD,436983,99240.15,490334648
BEIS,Met Office,2020-01-07,07 EQUIPMENT,TECHNOLOGY,COMPUTACENTER (UK) LTD,436995,4379,490334648
BEIS,Met Office,2020-01-07,10 EQUIPMENT MAINTENANCE,TECHNOLOGY,COMPUTACENTER (UK) LTD,436998,74439.58,490334648
BEIS,Met Office,2020-01-07,08 SOFTWARE LICENCES,TECHNOLOGY,COMPUTACENTER (UK) LTD,437007,2462.24,490334648
BEIS,Met Office,2020-01-13,07 EQUIPMENT,TECHNOLOGY,COMPUTACENTER (UK) LTD,437323,4379,490334648
BEIS,Met Office,2020-01-20,INFORMATION TECHNOLOGY,TECHNOLOGY,COMPUTACENTER (UK) LTD,437511,5988.46,490334648
BEIS,Met Office,2020-01-14,10 EQUIPMENT MAINTENANCE,TECHNOLOGY,COMPUTACENTER (UK) LTD,437513,19.81,490334648
BEIS,Met Office,2020-01-20,INFORMATION TECHNOLOGY,TECHNOLOGY,COMPUTACENTER (UK) LTD,437618,-5995.81,490334648
BEIS,Met Office,2020-01-20,07 EQUIPMENT,TECHNOLOGY,COMPUTACENTER (UK) LTD,437661,5066.86,490334648
BEIS,Met Office,2020-01-21,13 MISCELLANEOUS,CHIEF FINANCIAL OFFICER,COMPUTACENTER (UK) LTD,437771,99.45,490334648
BEIS,Met Office,2020-01-16,FIXTURE & FITTINGS,CHIEF FINANCIAL OFFICER,CONDECO LTD,436776,21070,756256215
BEIS,Met Office,2020-01-16,11 SERVICES,CHIEF FINANCIAL OFFICER,CONDECO LTD,436776,8160,756256215
BEIS,Met Office,2020-01-16,11 SERVICES,CHIEF FINANCIAL OFFICER,CONDECO LTD,436776,4680,756256215
BEIS,Met Office,2020-01-16,08 SOFTWARE LICENCES,CHIEF FINANCIAL OFFICER,CONDECO LTD,437598,12825,756256215
BEIS,Met Office,2020-01-29,11 SERVICES,GOVERNMENT SERVICES,CONSULTEC,21200,14103.77,400005915
BEIS,Met Office,2020-01-15,11 SERVICES,CHIEF FINANCIAL OFFICER,CORPS SECURITY,437136,1617,863536505
BEIS,Met Office,2020-01-07,11 SERVICES,CHIEF FINANCIAL OFFICER,CORPS SECURITY,437139,9615.94,863536505
BEIS,Met Office,2020-01-07,11 SERVICES,CHIEF FINANCIAL OFFICER,CORPS SECURITY,437140,19172.2,863536505
BEIS,Met Office,2020-01-14,11 SERVICES,SCIENCE,CRANFIELD AEROSPACE SOLUTIONS LTD,437453,51043,608596509
BEIS,Met Office,2020-01-14,11 SERVICES,SCIENCE,CRANFIELD AEROSPACE SOLUTIONS LTD,437454,51043,608596509
BEIS,Met Office,2020-01-07,CYCLESCHEME,OTHER,CYCLESCHEME LTD,437141,744.98,850403556
BEIS,Met Office,2020-01-07,CYCLESCHEME,OTHER,CYCLESCHEME LTD,437142,483.32,850403556
BEIS,Met Office,2020-01-07,CYCLESCHEME,OTHER,CYCLESCHEME LTD,437143,822.06,850403556
BEIS,Met Office,2020-01-14,06 ACCOMMODATION,CHIEF FINANCIAL OFFICER,D&G OFFICE SERVICES LTD,437493,350,272997547
BEIS,Met Office,2020-01-20,06 ACCOMMODATION,CHIEF FINANCIAL OFFICER,D&G OFFICE SERVICES LTD,437678,1248.5,272997547
BEIS,Met Office,2020-01-08,12 INTERNATIONAL,OPERATIONS,Deutscher Wetterdienst,21036,9350.47,-
BEIS,Met Office,2020-01-17,11 SERVICES,OPERATIONS,DHL GLOBAL FORWARDING (UK) LTD,437222,552.34,745260438
BEIS,Met Office,2020-01-17,11 SERVICES,OPERATIONS,DHL GLOBAL FORWARDING (UK) LTD,437223,561.34,745260438
BEIS,Met Office,2020-01-24,11 SERVICES,SCIENCE,DHL INTERNATIONAL (UK) LTD,433198,11,751812341
BEIS,Met Office,2020-01-24,PAYE AND VAT,OTHER,DHL INTERNATIONAL (UK) LTD,433833,-25.24,751812341
BEIS,Met Office,2020-01-24,11 SERVICES,SCIENCE,DHL INTERNATIONAL (UK) LTD,433833,-11,751812341
BEIS,Met Office,2020-01-21,11 SERVICES,CHIEF FINANCIAL OFFICER,DIGITAL COMMUNICATIONS SYSTEMS LIMITED,437059,2343.24,GB 556 1971 19
BEIS,Met Office,2020-01-09,11 SERVICES,CHIEF FINANCIAL OFFICER,DIGITAL COMMUNICATIONS SYSTEMS LIMITED,437293,5814.24,GB 556 1971 19
BEIS,Met Office,2020-01-29,11 SERVICES,CHIEF FINANCIAL OFFICER,DIGITAL COMMUNICATIONS SYSTEMS LIMITED,438033,5846.27,GB 556 1971 19
BEIS,Met Office,2020-01-30,11 SERVICES,GOVERNMENT SERVICES,DJS RESEARCH LIMITED,438022,15500,775718779
BEIS,Met Office,2020-01-22,11 SERVICES,OPERATIONS,DOT SOFTWARE LTD,437770,1980,701022805
BEIS,Met Office,2020-01-22,11 SERVICES,OPERATIONS,DOT SOFTWARE LTD,437770,10500,701022805
BEIS,Met Office,2020-01-22,11 SERVICES,OPERATIONS,DOT SOFTWARE LTD,437770,8100,701022805
BEIS,Met Office,2020-01-23,11 SERVICES,GOVERNMENT SERVICES,DOUBLE ELEPHANT PRINT WORKSHOP,437822,250,-
BEIS,Met Office,2020-01-28,06 ACCOMMODATION,CHIEF FINANCIAL OFFICER,DOUGAL & RAILTON LTD,437968,298,175 8220 53
BEIS,Met Office,2020-01-07,11 SERVICES,OPERATIONS,DSTL,436857,699.72,888805166
BEIS,Met Office,2020-01-15,11 SERVICES,OPERATIONS,DSTL,437500,745,888805166
BEIS,Met Office,2020-01-23,13 MISCELLANEOUS,CHIEF FINANCIAL OFFICER,DWYFOR COFFEE COMPANY LTD,434348,-29.4,559811116
BEIS,Met Office,2020-01-23,13 MISCELLANEOUS,CHIEF FINANCIAL OFFICER,DWYFOR COFFEE COMPANY LTD,435155,19.47,559811116
BEIS,Met Office,2020-01-23,13 MISCELLANEOUS,CHIEF FINANCIAL OFFICER,DWYFOR COFFEE COMPANY LTD,437880,30.18,559811116
BEIS,Met Office,2020-01-23,13 MISCELLANEOUS,CHIEF FINANCIAL OFFICER,DWYFOR COFFEE COMPANY LTD,437881,30.18,559811116
BEIS,Met Office,2020-01-08,11 SERVICES,GOVERNMENT SERVICES,ECMWF,21050,4460.71,NOTVATREG
BEIS,Met Office,2020-01-08,11 SERVICES,GOVERNMENT SERVICES,ECMWF,21051,11941.47,NOTVATREG
BEIS,Met Office,2020-01-08,11 SERVICES,GOVERNMENT SERVICES,ECMWF,21052,1054.9,NOTVATREG
BEIS,Met Office,2020-01-08,11 SERVICES,GOVERNMENT SERVICES,ECMWF,21053,1681.31,NOTVATREG
BEIS,Met Office,2020-01-08,11 SERVICES,GOVERNMENT SERVICES,ECMWF,21054,29548.99,NOTVATREG
BEIS,Met Office,2020-01-08,11 SERVICES,GOVERNMENT SERVICES,ECMWF,21055,9418.53,NOTVATREG
BEIS,Met Office,2020-01-08,11 SERVICES,GOVERNMENT SERVICES,ECMWF,21056,19508.66,NOTVATREG
BEIS,Met Office,2020-01-08,11 SERVICES,GOVERNMENT SERVICES,ECMWF,21057,5668.96,NOTVATREG
BEIS,Met Office,2020-01-08,11 SERVICES,GOVERNMENT SERVICES,ECMWF,21058,1260.98,NOTVATREG
BEIS,Met Office,2020-01-08,11 SERVICES,GOVERNMENT SERVICES,ECMWF,21059,9635.53,NOTVATREG
BEIS,Met Office,2020-01-08,11 SERVICES,GOVERNMENT SERVICES,ECMWF,21060,29548.99,NOTVATREG
BEIS,Met Office,2020-01-08,11 SERVICES,GOVERNMENT SERVICES,ECMWF,21061,29548.99,NOTVATREG
BEIS,Met Office,2020-01-08,11 SERVICES,GOVERNMENT SERVICES,ECMWF,21062,3908.46,NOTVATREG
BEIS,Met Office,2020-01-08,11 SERVICES,GOVERNMENT SERVICES,ECMWF,21063,10043.58,NOTVATREG
BEIS,Met Office,2020-01-08,11 SERVICES,GOVERNMENT SERVICES,ECMWF,21064,3844.29,NOTVATREG
BEIS,Met Office,2020-01-08,11 SERVICES,GOVERNMENT SERVICES,ECMWF,21065,3850.06,NOTVATREG
BEIS,Met Office,2020-01-08,11 SERVICES,GOVERNMENT SERVICES,ECMWF,21066,9418.53,NOTVATREG
BEIS,Met Office,2020-01-08,11 SERVICES,GOVERNMENT SERVICES,ECMWF,21067,3668.61,NOTVATREG
BEIS,Met Office,2020-01-08,11 SERVICES,GOVERNMENT SERVICES,ECMWF,21069,29548.99,NOTVATREG
BEIS,Met Office,2020-01-08,11 SERVICES,GOVERNMENT SERVICES,ECMWF,21071,3410.83,NOTVATREG
BEIS,Met Office,2020-01-08,11 SERVICES,GOVERNMENT SERVICES,ECMWF,21072,9635.53,NOTVATREG
BEIS,Met Office,2020-01-08,11 SERVICES,GOVERNMENT SERVICES,ECMWF,21073,29548.99,NOTVATREG
BEIS,Met Office,2020-01-08,11 SERVICES,GOVERNMENT SERVICES,ECMWF,21074,29077.67,NOTVATREG
BEIS,Met Office,2020-01-08,11 SERVICES,GOVERNMENT SERVICES,ECMWF,21075,3787.26,NOTVATREG
BEIS,Met Office,2020-01-08,11 SERVICES,GOVERNMENT SERVICES,ECMWF,21078,426.78,NOTVATREG
BEIS,Met Office,2020-01-08,11 SERVICES,GOVERNMENT SERVICES,ECMWF,21079,3782.94,NOTVATREG
BEIS,Met Office,2020-01-08,11 SERVICES,GOVERNMENT SERVICES,ECMWF,21080,1262.74,NOTVATREG
BEIS,Met Office,2020-01-08,11 SERVICES,GOVERNMENT SERVICES,ECMWF,21081,1870.05,NOTVATREG
BEIS,Met Office,2020-01-08,11 SERVICES,GOVERNMENT SERVICES,ECMWF,21082,95.15,NOTVATREG
BEIS,Met Office,2020-01-08,11 SERVICES,GOVERNMENT SERVICES,ECMWF,21084,922.47,NOTVATREG
BEIS,Met Office,2020-01-08,11 SERVICES,GOVERNMENT SERVICES,ECMWF,21085,2522,NOTVATREG
BEIS,Met Office,2020-01-08,11 SERVICES,GOVERNMENT SERVICES,ECMWF,21086,394.6,NOTVATREG
BEIS,Met Office,2020-01-08,11 SERVICES,GOVERNMENT SERVICES,ECMWF,21087,27951.75,NOTVATREG
BEIS,Met Office,2020-01-08,11 SERVICES,GOVERNMENT SERVICES,ECMWF,21088,3882.77,NOTVATREG
BEIS,Met Office,2020-01-08,11 SERVICES,GOVERNMENT SERVICES,ECMWF,21090,2961.81,NOTVATREG
BEIS,Met Office,2020-01-08,11 SERVICES,GOVERNMENT SERVICES,ECMWF,21092,27951.75,NOTVATREG
BEIS,Met Office,2020-01-08,11 SERVICES,GOVERNMENT SERVICES,ECMWF,21093,29548.99,NOTVATREG
BEIS,Met Office,2020-01-08,11 SERVICES,GOVERNMENT SERVICES,ECMWF,21094,29548.99,NOTVATREG
BEIS,Met Office,2020-01-08,11 SERVICES,GOVERNMENT SERVICES,ECMWF,21095,27951.75,NOTVATREG
BEIS,Met Office,2020-01-08,11 SERVICES,GOVERNMENT SERVICES,ECMWF,21096,3782.94,NOTVATREG
BEIS,Met Office,2020-01-08,11 SERVICES,GOVERNMENT SERVICES,ECMWF,21097,29548.99,NOTVATREG
BEIS,Met Office,2020-01-08,11 SERVICES,GOVERNMENT SERVICES,ECMWF,21098,29548.99,NOTVATREG
BEIS,Met Office,2020-01-08,11 SERVICES,GOVERNMENT SERVICES,ECMWF,21099,4072.65,NOTVATREG
BEIS,Met Office,2020-01-08,11 SERVICES,GOVERNMENT SERVICES,ECMWF,21100,797.7,NOTVATREG
BEIS,Met Office,2020-01-08,11 SERVICES,GOVERNMENT SERVICES,ECMWF,21101,27951.75,NOTVATREG
BEIS,Met Office,2020-01-22,11 SERVICES,GOVERNMENT SERVICES,ECMWF,21147,1143.37,NOTVATREG
BEIS,Met Office,2020-01-08,12 INTERNATIONAL,OPERATIONS,ECMWF,433816,571575.46,NOTVATREG
BEIS,Met Office,2020-01-08,12 INTERNATIONAL,OPERATIONS,ECOMET,21116,19156.32,EXEMPT
BEIS,Met Office,2020-01-08,06 ACCOMMODATION,CHIEF FINANCIAL OFFICER,EDF ENERGY CUSTOMERS PLC,437060,-110626.82,523041202
BEIS,Met Office,2020-01-08,06 ACCOMMODATION,CHIEF FINANCIAL OFFICER,EDF ENERGY CUSTOMERS PLC,437064,110989.3,523041202
BEIS,Met Office,2020-01-08,06 ACCOMMODATION,CHIEF FINANCIAL OFFICER,EDF ENERGY CUSTOMERS PLC,437070,379739.53,523041202
BEIS,Met Office,2020-01-08,06 ACCOMMODATION,CHIEF FINANCIAL OFFICER,EDF ENERGY CUSTOMERS PLC,437071,125969.2,523041202
BEIS,Met Office,2020-01-14,06 ACCOMMODATION,CHIEF FINANCIAL OFFICER,EDF ENERGY CUSTOMERS PLC,437283,112786.05,523041202
BEIS,Met Office,2020-01-21,06 ACCOMMODATION,CHIEF FINANCIAL OFFICER,EDF ENERGY CUSTOMERS PLC,437672,4059.53,523041202
BEIS,Met Office,2020-01-07,STOCK,OPERATIONS,EDMUNDSON ELECTRICAL LTD,436966,0,338246841
BEIS,Met Office,2020-01-07,STOCK,OPERATIONS,EDMUNDSON ELECTRICAL LTD,436966,419.54,338246841
BEIS,Met Office,2020-01-22,11 SERVICES,CHIEF FINANCIAL OFFICER,EIR,21190,52.18,4736919B
BEIS,Met Office,2020-01-08,03 STAFF COSTS T&S,CHIEF FINANCIAL OFFICER,ENTERPRISE RENT A CAR UK LTD,437208,1378.44,215557314
BEIS,Met Office,2020-01-08,03 STAFF COSTS T&S,CHIEF FINANCIAL OFFICER,ENTERPRISE RENT A CAR UK LTD,437209,1304.53,215557314
BEIS,Met Office,2020-01-10,03 STAFF COSTS T&S,CHIEF FINANCIAL OFFICER,ENTERPRISE RENT A CAR UK LTD,437363,1000,215557314
BEIS,Met Office,2020-01-30,03 STAFF COSTS T&S,CHIEF FINANCIAL OFFICER,ENTERPRISE RENT A CAR UK LTD,437567,-792.27,215557314
BEIS,Met Office,2020-01-30,PAYE AND VAT,OTHER,ENTERPRISE RENT A CAR UK LTD,437568,0,215557314
BEIS,Met Office,2020-01-17,03 STAFF COSTS T&S,CHIEF FINANCIAL OFFICER,ENTERPRISE RENT A CAR UK LTD,437635,1709.96,215557314
BEIS,Met Office,2020-01-21,03 STAFF COSTS T&S,CHIEF FINANCIAL OFFICER,ENTERPRISE RENT A CAR UK LTD,437761,4620.32,215557314
BEIS,Met Office,2020-01-23,03 STAFF COSTS T&S,CHIEF FINANCIAL OFFICER,ENTERPRISE RENT A CAR UK LTD,437820,63.31,215557314
BEIS,Met Office,2020-01-23,03 STAFF COSTS T&S,CHIEF FINANCIAL OFFICER,ENTERPRISE RENT A CAR UK LTD,437821,144.18,215557314
BEIS,Met Office,2020-01-28,03 STAFF COSTS T&S,CHIEF FINANCIAL OFFICER,ENTERPRISE RENT A CAR UK LTD,437954,2563.65,215557314
BEIS,Met Office,2020-01-30,03 STAFF COSTS T&S,CHIEF FINANCIAL OFFICER,ENTERPRISE RENT A CAR UK LTD,438054,1000,215557314
BEIS,Met Office,2020-01-14,11 SERVICES,CORPORATE,EQUINITI ICS LTD,437085,6974,915967778
BEIS,Met Office,2020-01-07,11 SERVICES,CORPORATE,EQUINITI ICS LTD,437086,316.66,915967778
BEIS,Met Office,2020-01-22,05 CONSULTANTS,STRATEGIC INVESTMENT,Ernst & Young Llp,437818,120512,773831408
BEIS,Met Office,2020-01-22,05 CONSULTANTS,STRATEGIC INVESTMENT,Ernst & Young Llp,437819,15312,773831408
BEIS,Met Office,2020-01-08,11 SERVICES,OPERATIONS,"EUTELSAT MADERIA, UNIPESSOAL LDA",21105,2164.81,PT511283733
BEIS,Met Office,2020-01-08,11 SERVICES,OPERATIONS,"EUTELSAT, S.A.",21041,3695.18,-
BEIS,Met Office,2020-01-29,11 SERVICES,OPERATIONS,"EUTELSAT, S.A.",21150,2905.54,-
BEIS,Met Office,2020-01-28,11 SERVICES,OPERATIONS,Exeter College,437904,3500,125451632
BEIS,Met Office,2020-01-27,11 SERVICES,GOVERNMENT SERVICES,EXETER PHOENIX LTD,437903,175,409043671
BEIS,Met Office,2020-01-15,11 SERVICES,CHIEF FINANCIAL OFFICER,EXPONENTIAL-E,437497,1328.36,GB798572653
BEIS,Met Office,2020-01-21,03 STAFF COSTS T&S,OPERATIONS,FALKLAND ISLAND COMPANY LTD,437662,3089.1,N/A
BEIS,Met Office,2020-01-31,03 STAFF COSTS T&S,OPERATIONS,FALKLAND ISLAND COMPANY LTD,438075,700,N/A
BEIS,Met Office,2020-01-31,03 STAFF COSTS T&S,OPERATIONS,FALKLAND ISLAND COMPANY LTD,438076,700,N/A
BEIS,Met Office,2020-01-31,03 STAFF COSTS T&S,OPERATIONS,FALKLAND ISLAND COMPANY LTD,438077,650,N/A
BEIS,Met Office,2020-01-07,03 STAFF COSTS T&S,GOVERNMENT SERVICES,FCO,434668,373.05,888813560
BEIS,Met Office,2020-01-07,11 SERVICES,GOVERNMENT SERVICES,FCO,434668,2886.35,888813560
BEIS,Met Office,2020-01-07,11 SERVICES,GOVERNMENT SERVICES,FCO,434668,590.16,888813560
BEIS,Met Office,2020-01-07,11 SERVICES,GOVERNMENT SERVICES,FCO,437137,34.14,888813560
BEIS,Met Office,2020-01-07,11 SERVICES,GOVERNMENT SERVICES,FCO,437137,209.89,888813560
BEIS,Met Office,2020-01-31,11 SERVICES,GOVERNMENT SERVICES,FCO,437987,4116.16,888813560
BEIS,Met Office,2020-01-31,11 SERVICES,GOVERNMENT SERVICES,FCO,438055,3143.79,888813560
BEIS,Met Office,2020-01-14,04 CONTRACTORS,TECHNOLOGY,FDM GROUP LIMITED,437465,2160,583540529
BEIS,Met Office,2020-01-14,04 CONTRACTORS,TECHNOLOGY,FDM GROUP LIMITED,437466,540,583540529
BEIS,Met Office,2020-01-14,04 CONTRACTORS,TECHNOLOGY,FDM GROUP LIMITED,437503,3375,583540529
BEIS,Met Office,2020-01-08,STOCK,OPERATIONS,FEINGERATEBAU K. FISCHER GMBH,21043,0,DE141292589
BEIS,Met Office,2020-01-08,STOCK,OPERATIONS,FEINGERATEBAU K. FISCHER GMBH,21043,3177.67,DE141292589
BEIS,Met Office,2020-01-08,11 SERVICES,OPERATIONS,FEINGERATEBAU K. FISCHER GMBH,21043,36.15,DE141292589
BEIS,Met Office,2020-01-22,11 SERVICES,STRATEGIC INVESTMENT,FLYFORM LTD,437753,598,237333808
BEIS,Met Office,2020-01-10,13 MISCELLANEOUS,SCIENCE,FOUNDATION FOR SCIENCE & TECHNOLOGY,437074,2975,447089719
BEIS,Met Office,2020-01-09,06 ACCOMMODATION,CHIEF FINANCIAL OFFICER,FOX GROUNDS MAINTENANCE & LANDSCAPING LTD,437227,296.7,129495383
BEIS,Met Office,2020-01-09,06 ACCOMMODATION,CHIEF FINANCIAL OFFICER,FOX GROUNDS MAINTENANCE & LANDSCAPING LTD,437228,1600,129495383
BEIS,Met Office,2020-01-14,06 ACCOMMODATION,CHIEF FINANCIAL OFFICER,FUTURE CLEANING SERVICES (SW) LTD.,437330,820.48,756916489
BEIS,Met Office,2020-01-13,06 ACCOMMODATION,CHIEF FINANCIAL OFFICER,FUTURE CLEANING SERVICES (SW) LTD.,437357,365.28,756916489
BEIS,Met Office,2020-01-15,06 ACCOMMODATION,CHIEF FINANCIAL OFFICER,FUTURE CLEANING SERVICES (SW) LTD.,437487,12.36,756916489
BEIS,Met Office,2020-01-14,11 SERVICES,CHIEF FINANCIAL OFFICER,GAMMA BUSINESS COMMUNICATIONS LTD,437308,413.1,823820344
BEIS,Met Office,2020-01-14,11 SERVICES,CHIEF FINANCIAL OFFICER,GAMMA BUSINESS COMMUNICATIONS LTD,437308,84.4,823820344
BEIS,Met Office,2020-01-15,07 EQUIPMENT,OPERATIONS,GAMMA TELECOM LTD,437321,681.77,823820344
BEIS,Met Office,2020-01-15,07 EQUIPMENT,OPERATIONS,GAMMA TELECOM LTD,437321,23.5,823820344
BEIS,Met Office,2020-01-15,07 EQUIPMENT,OPERATIONS,GAMMA TELECOM LTD,437321,65.3,823820344
BEIS,Met Office,2020-01-15,07 EQUIPMENT,OPERATIONS,GAMMA TELECOM LTD,437321,2338.1,823820344
BEIS,Met Office,2020-01-15,07 EQUIPMENT,OPERATIONS,GAMMA TELECOM LTD,437321,8.69,823820344
BEIS,Met Office,2020-01-10,11 SERVICES,CHIEF FINANCIAL OFFICER,GAMMA TELECOM LTD,437322,6.43,823820344
BEIS,Met Office,2020-01-10,11 SERVICES,CHIEF FINANCIAL OFFICER,GAMMA TELECOM LTD,437322,25610.37,823820344
BEIS,Met Office,2020-01-14,04 CONTRACTORS,TECHNOLOGY,GCS IT RECRUITMENT SPECIALISTS LTD,437494,7735,896156575
BEIS,Met Office,2020-01-15,04 CONTRACTORS,TECHNOLOGY,GCS IT RECRUITMENT SPECIALISTS LTD,437573,10500,896156575
BEIS,Met Office,2020-01-15,04 CONTRACTORS,TECHNOLOGY,GCS IT RECRUITMENT SPECIALISTS LTD,437574,15000,896156575
BEIS,Met Office,2020-01-20,11 SERVICES,CHIEF FINANCIAL OFFICER,GIBRALTAR NYNEX COMMUNICATIONS LTD,437649,147.61,NOVAT
BEIS,Met Office,2020-01-28,06 ACCOMMODATION,CHIEF FINANCIAL OFFICER,GILKS (NANTWICH) LTD,437969,260,278492313
BEIS,Met Office,2020-01-15,08 SOFTWARE LICENCES,TECHNOLOGY,GITHUB INC,9639,48312.5,-
BEIS,Met Office,2020-01-07,06 ACCOMMODATION,CHIEF FINANCIAL OFFICER,GREENSTAR CLEANERS LTD,436994,170,492376222
BEIS,Met Office,2020-01-27,06 ACCOMMODATION,CHIEF FINANCIAL OFFICER,GREENSTAR CLEANERS LTD,437909,110,492376222
BEIS,Met Office,2020-01-17,STOCK,OPERATIONS,H & B SENSORS LTD,437502,0,321828666
BEIS,Met Office,2020-01-17,STOCK,OPERATIONS,H & B SENSORS LTD,437502,2845.5,321828666
BEIS,Met Office,2020-01-17,11 SERVICES,OPERATIONS,H & B SENSORS LTD,437502,25,321828666
BEIS,Met Office,2020-01-22,07 EQUIPMENT,GOVERNMENT SERVICES,HANDIX SCIENTIFIC,9667,9487.82,-
BEIS,Met Office,2020-01-22,07 EQUIPMENT,GOVERNMENT SERVICES,HANDIX SCIENTIFIC,9667,316.26,-
BEIS,Met Office,2020-01-15,11 SERVICES,CORPORATE,HAWK INCENTIVES LTD,437504,5916.75,238839422
BEIS,Met Office,2020-01-15,11 SERVICES,CORPORATE,HAWK INCENTIVES LTD,437506,12248.25,238839422
BEIS,Met Office,2020-01-23,11 SERVICES,CORPORATE,HAWK INCENTIVES LTD,437851,22601.25,238839422
BEIS,Met Office,2020-01-29,11 SERVICES,CORPORATE,HAWK INCENTIVES LTD,437989,1239,238839422
BEIS,Met Office,2020-01-15,04 CONTRACTORS,CORPORATE,HAYS SPECIALIST RECRUITMENT LTD,437556,292.93,773695871
BEIS,Met Office,2020-01-15,04 CONTRACTORS,CORPORATE,HAYS SPECIALIST RECRUITMENT LTD,437571,219.7,773695871
BEIS,Met Office,2020-01-16,04 CONTRACTORS,CORPORATE,HAYS SPECIALIST RECRUITMENT LTD,437617,366.16,773695871
BEIS,Met Office,2020-01-20,04 CONTRACTORS,CORPORATE,HAYS SPECIALIST RECRUITMENT LTD,437673,658.25,773695871
BEIS,Met Office,2020-01-24,04 CONTRACTORS,CORPORATE,HAYS SPECIALIST RECRUITMENT LTD,437866,667.14,773695871
BEIS,Met Office,2020-01-24,04 CONTRACTORS,BUSINESS GROUP,HAYS SPECIALIST RECRUITMENT LTD,437867,1428,773695871
BEIS,Met Office,2020-01-27,04 CONTRACTORS,CORPORATE,HAYS SPECIALIST RECRUITMENT LTD,437907,366.15,773695871
BEIS,Met Office,2020-01-31,04 CONTRACTORS,CORPORATE,HAYS SPECIALIST RECRUITMENT LTD,438119,366.15,773695871
BEIS,Met Office,2020-01-31,04 CONTRACTORS,CORPORATE,HAYS SPECIALIST RECRUITMENT LTD,438120,667.15,773695871
BEIS,Met Office,2020-01-29,13 MISCELLANEOUS,CORPORATE,HEALTH MANAGEMENT LTD,438003,137.14,792250621
BEIS,Met Office,2020-01-30,13 MISCELLANEOUS,CORPORATE,HEALTH MANAGEMENT LTD,438030,5074.57,792250621
BEIS,Met Office,2020-01-22,11 SERVICES,BUSINESS GROUP,HELIOS TECHNOLOGY LIMITED,437782,15000,681234148
BEIS,Met Office,2020-01-29,11 SERVICES,GOVERNMENT SERVICES,HOGAN LOVELLS INTERNATIONAL LLP,438004,44300.65,GB123371543
BEIS,Met Office,2020-01-29,11 SERVICES,GOVERNMENT SERVICES,HOGAN LOVELLS INTERNATIONAL LLP,438007,4572,GB123371543
BEIS,Met Office,2020-01-29,11 SERVICES,GOVERNMENT SERVICES,HOGAN LOVELLS INTERNATIONAL LLP,438016,34851.65,GB123371543
BEIS,Met Office,2020-01-29,11 SERVICES,GOVERNMENT SERVICES,HOGAN LOVELLS INTERNATIONAL LLP,438018,19099.39,GB123371543
BEIS,Met Office,2020-01-29,11 SERVICES,GOVERNMENT SERVICES,HOGAN LOVELLS INTERNATIONAL LLP,438018,42000,GB123371543
BEIS,Met Office,2020-01-29,11 SERVICES,GOVERNMENT SERVICES,HOGAN LOVELLS INTERNATIONAL LLP,438019,42862.5,GB123371543
BEIS,Met Office,2020-01-29,11 SERVICES,GOVERNMENT SERVICES,HOGAN LOVELLS INTERNATIONAL LLP,438020,326089.54,GB123371543
BEIS,Met Office,2020-01-16,12 INTERNATIONAL,OPERATIONS,HOWTOMOODLE LTD,437505,1775,GB 8337554 13
BEIS,Met Office,2020-01-27,06 ACCOMMODATION,CHIEF FINANCIAL OFFICER,I J CANNINGS & SON LTD,436382,3245.8,192803203
BEIS,Met Office,2020-01-13,06 ACCOMMODATION,CHIEF FINANCIAL OFFICER,I J CANNINGS & SON LTD,437385,116,192803203
BEIS,Met Office,2020-01-15,06 ACCOMMODATION,CHIEF FINANCIAL OFFICER,I J CANNINGS & SON LTD,437496,332.32,192803203
BEIS,Met Office,2020-01-20,06 ACCOMMODATION,CHIEF FINANCIAL OFFICER,I J CANNINGS & SON LTD,437666,800,192803203
BEIS,Met Office,2020-01-20,06 ACCOMMODATION,CHIEF FINANCIAL OFFICER,I J CANNINGS & SON LTD,437667,143.78,192803203
BEIS,Met Office,2020-01-22,06 ACCOMMODATION,CHIEF FINANCIAL OFFICER,I J CANNINGS & SON LTD,437670,1521,192803203
BEIS,Met Office,2020-01-24,06 ACCOMMODATION,CHIEF FINANCIAL OFFICER,I J CANNINGS & SON LTD,437896,543.88,192803203
BEIS,Met Office,2020-01-24,06 ACCOMMODATION,CHIEF FINANCIAL OFFICER,I J CANNINGS & SON LTD,437897,564.86,192803203
BEIS,Met Office,2020-01-27,06 ACCOMMODATION,CHIEF FINANCIAL OFFICER,I J CANNINGS & SON LTD,437925,3900,192803203
BEIS,Met Office,2020-01-08,11 SERVICES,STRATEGIC INVESTMENT,"IBL SOFTWARE ENGINEERING, SPOL S.R.O.",436145,749.2,SK2020241883
BEIS,Met Office,2020-01-08,11 SERVICES,STRATEGIC INVESTMENT,"IBL SOFTWARE ENGINEERING, SPOL S.R.O.",436146,2041.99,SK2020241883
BEIS,Met Office,2020-01-24,11 SERVICES,TECHNOLOGY,IBM UNITED KINGDOM LTD,413103,1810,107328000
BEIS,Met Office,2020-01-24,11 SERVICES,TECHNOLOGY,IBM UNITED KINGDOM LTD,433117,-1810,107328000
BEIS,Met Office,2020-01-07,11 SERVICES,TECHNOLOGY,IBM UNITED KINGDOM LTD,436753,604.38,107328000
BEIS,Met Office,2020-01-07,08 SOFTWARE LICENCES,TECHNOLOGY,IBM UNITED KINGDOM LTD,437017,8348.85,107328000
BEIS,Met Office,2020-01-20,11 SERVICES,TECHNOLOGY,IBM UNITED KINGDOM LTD,437674,6062.7,107328000
BEIS,Met Office,2020-01-24,11 SERVICES,BUSINESS GROUP,INCISIVE MEDIA SERVICES LTD,375417,1200,756978165
BEIS,Met Office,2020-01-24,11 SERVICES,BUSINESS GROUP,INCISIVE MEDIA SERVICES LTD,376306,-1200,756978165
BEIS,Met Office,2020-01-10,06 ACCOMMODATION,OPERATIONS,INMARSAT SOLUTIONS (CANADA) INC,437091,943,766144223
BEIS,Met Office,2020-01-08,13 MISCELLANEOUS,GOVERNMENT SERVICES,INSTITUTE OF ATMOSPHERIC PHYSICS,9637,683.75,12100000400011
BEIS,Met Office,2020-01-13,07 EQUIPMENT,TECHNOLOGY,INSURGO MEDIA SERVICES LTD,437358,6647.5,979682734
BEIS,Met Office,2020-01-08,08 SOFTWARE LICENCES,GOVERNMENT SERVICES,"INTELLOVATIONS, LLC",9652,1421.52,-
BEIS,Met Office,2020-01-22,06 ACCOMMODATION,CHIEF FINANCIAL OFFICER,JAMES & MARCIA BENJAMIN,437077,520,-
BEIS,Met Office,2020-01-21,13 MISCELLANEOUS,BUSINESS GROUP,JCT Ltd,437632,708,714 3761 44
BEIS,Met Office,2020-01-07,11 SERVICES,CHIEF FINANCIAL OFFICER,JERSEY TELECOM,437072,1307.43,NOTVATREG
BEIS,Met Office,2020-01-27,11 SERVICES,GOVERNMENT SERVICES,JISC COLLECTIONS & JANET LTD,437874,8993.37,614944238
BEIS,Met Office,2020-01-27,11 SERVICES,SCIENCE,JISC COLLECTIONS & JANET LTD,437874,16446.43,614944238
BEIS,Met Office,2020-01-27,11 SERVICES,TECHNOLOGY,JISC COLLECTIONS & JANET LTD,437874,37560.2,614944238
BEIS,Met Office,2020-01-10,04 CONTRACTORS,GOVERNMENT SERVICES,JOBSEEKERS RECRUITMENT SERVICES LTD,437285,259.8,130 1297 14
BEIS,Met Office,2020-01-10,04 CONTRACTORS,OPERATIONS,JOBSEEKERS RECRUITMENT SERVICES LTD,437286,380.46,130 1297 14
BEIS,Met Office,2020-01-10,04 CONTRACTORS,GOVERNMENT SERVICES,JOBSEEKERS RECRUITMENT SERVICES LTD,437287,401.63,130 1297 14
BEIS,Met Office,2020-01-16,04 CONTRACTORS,CORPORATE,JOBSEEKERS RECRUITMENT SERVICES LTD,437599,1029.71,130 1297 14
BEIS,Met Office,2020-01-16,04 CONTRACTORS,GOVERNMENT SERVICES,JOBSEEKERS RECRUITMENT SERVICES LTD,437600,849.15,130 1297 14
BEIS,Met Office,2020-01-16,04 CONTRACTORS,GOVERNMENT SERVICES,JOBSEEKERS RECRUITMENT SERVICES LTD,437601,640.84,130 1297 14
BEIS,Met Office,2020-01-16,04 CONTRACTORS,OPERATIONS,JOBSEEKERS RECRUITMENT SERVICES LTD,437602,563.23,130 1297 14
BEIS,Met Office,2020-01-21,04 CONTRACTORS,OPERATIONS,JOBSEEKERS RECRUITMENT SERVICES LTD,437772,634.1,130 1297 14
BEIS,Met Office,2020-01-21,04 CONTRACTORS,CORPORATE,JOBSEEKERS RECRUITMENT SERVICES LTD,437773,1029.71,130 1297 14
BEIS,Met Office,2020-01-21,04 CONTRACTORS,GOVERNMENT SERVICES,JOBSEEKERS RECRUITMENT SERVICES LTD,437774,640.84,130 1297 14
BEIS,Met Office,2020-01-21,04 CONTRACTORS,CHIEF FINANCIAL OFFICER,JOBSEEKERS RECRUITMENT SERVICES LTD,437775,516.64,130 1297 14
BEIS,Met Office,2020-01-21,04 CONTRACTORS,GOVERNMENT SERVICES,JOBSEEKERS RECRUITMENT SERVICES LTD,437776,849.15,130 1297 14
BEIS,Met Office,2020-01-29,04 CONTRACTORS,CHIEF FINANCIAL OFFICER,JOBSEEKERS RECRUITMENT SERVICES LTD,438005,413.31,130 1297 14
BEIS,Met Office,2020-01-29,04 CONTRACTORS,GOVERNMENT SERVICES,JOBSEEKERS RECRUITMENT SERVICES LTD,438006,849.15,130 1297 14
BEIS,Met Office,2020-01-29,04 CONTRACTORS,OPERATIONS,JOBSEEKERS RECRUITMENT SERVICES LTD,438008,690.05,130 1297 14
BEIS,Met Office,2020-01-29,04 CONTRACTORS,CORPORATE,JOBSEEKERS RECRUITMENT SERVICES LTD,438009,834.9,130 1297 14
BEIS,Met Office,2020-01-29,04 CONTRACTORS,GOVERNMENT SERVICES,JOBSEEKERS RECRUITMENT SERVICES LTD,438010,640.84,130 1297 14
BEIS,Met Office,2020-01-08,11 SERVICES,OPERATIONS,KCOM GROUP PLC,436946,4657.5,647235137
BEIS,Met Office,2020-01-30,11 SERVICES,OPERATIONS,KCOM GROUP PLC,438023,2671.83,647235137
BEIS,Met Office,2020-01-08,11 SERVICES,GOVERNMENT SERVICES,KENYA METEOROLOGICAL DEPARTMENT,436501,3585.2,-
BEIS,Met Office,2020-01-15,10 EQUIPMENT MAINTENANCE,OPERATIONS,Kongsberg Spacetec As,435769,44617,-
BEIS,Met Office,2020-01-30,08 SOFTWARE LICENCES,TECHNOLOGY,LAND & PROPERTY SERVICES,436891,1097.36,888808059
BEIS,Met Office,2020-01-07,11 SERVICES,CORPORATE,Landmark Information Group Ltd,436947,56578.73,634509735
BEIS,Met Office,2020-01-07,11 SERVICES,CORPORATE,Landmark Information Group Ltd,436948,74623.2,634509735
BEIS,Met Office,2020-01-07,11 SERVICES,CORPORATE,Landmark Information Group Ltd,436949,1327.82,634509735
BEIS,Met Office,2020-01-07,11 SERVICES,CORPORATE,Landmark Information Group Ltd,436950,720.63,634509735
BEIS,Met Office,2020-01-17,11 SERVICES,CORPORATE,Landmark Information Group Ltd,437613,37327.06,634509735
BEIS,Met Office,2020-01-17,11 SERVICES,CORPORATE,Landmark Information Group Ltd,437615,54339.3,634509735
BEIS,Met Office,2020-01-27,11 SERVICES,CORPORATE,LAUGHING PHOENIX LTD,437876,614.4,989 4469 37
BEIS,Met Office,2020-01-09,03 STAFF COSTS T&S,CHIEF FINANCIAL OFFICER,LEASEDRIVE RENTAL MANAGEMENT LTD,437294,806.39,733546040
BEIS,Met Office,2020-01-08,06 ACCOMMODATION,CHIEF FINANCIAL OFFICER,LEWIS BUILDERS LTD,436132,3681.25,552140478
BEIS,Met Office,2020-01-22,06 ACCOMMODATION,CHIEF FINANCIAL OFFICER,LEWIS BUILDERS LTD,436133,1550.48,552140478
BEIS,Met Office,2020-01-22,06 ACCOMMODATION,BUSINESS GROUP,LHR BUSINESS SUPPORT CENTRE LTD,437758,20.27,927365404
BEIS,Met Office,2020-01-07,06 ACCOMMODATION,CHIEF FINANCIAL OFFICER,LIGHTNING PROTECTION SERVICES,437055,740,652 3609 42
BEIS,Met Office,2020-01-22,11 SERVICES,CHIEF FINANCIAL OFFICER,MANX TELECOM LTD,437719,53.21,003291912
BEIS,Met Office,2020-01-15,11 SERVICES,CHIEF FINANCIAL OFFICER,MAWASEM LTD,437048,186639.49,197694731
BEIS,Met Office,2020-01-15,11 SERVICES,CHIEF FINANCIAL OFFICER,MAWASEM LTD,437530,-2123.9,197694731
BEIS,Met Office,2020-01-21,11 SERVICES,CORPORATE,MERKLE UK THREE LTD T/A MERKLE PERISCOPIX,428852,1319.67,843316243
BEIS,Met Office,2020-01-23,11 SERVICES,CORPORATE,MERKLE UK THREE LTD T/A MERKLE PERISCOPIX,434604,8213.33,843316243
BEIS,Met Office,2020-01-15,11 SERVICES,CORPORATE,MERKLE UK THREE LTD T/A MERKLE PERISCOPIX,437507,8213.33,843316243
BEIS,Met Office,2020-01-31,12 INTERNATIONAL,OPERATIONS,MET SERVICE OF NEW ZEALAND LTD T/A METSERVICE,437609,-953.31,-
BEIS,Met Office,2020-01-31,12 INTERNATIONAL,OPERATIONS,MET SERVICE OF NEW ZEALAND LTD T/A METSERVICE,438147,-21.16,-
BEIS,Met Office,2020-01-08,11 SERVICES,GOVERNMENT SERVICES,Meteomatics Ltd,436339,145000,-
BEIS,Met Office,2020-01-20,06 ACCOMMODATION,CHIEF FINANCIAL OFFICER,METRIKUS LIMITED,437681,7070,321 8772 02
BEIS,Met Office,2020-01-29,11 SERVICES,CORPORATE,MILLS AND SONS LTD,437706,103.25,808366053
BEIS,Met Office,2020-01-21,13 MISCELLANEOUS,GOVERNMENT SERVICES,MILLS AND SONS LTD,437707,132.2,808366053
BEIS,Met Office,2020-01-08,13 MISCELLANEOUS,CHIEF FINANCIAL OFFICER,MITIE SECURITY LTD,437206,854.1,416706654
BEIS,Met Office,2020-01-08,11 SERVICES,CHIEF FINANCIAL OFFICER,MITIE SECURITY LTD,437207,58.4,416706654
BEIS,Met Office,2020-01-14,11 SERVICES,OPERATIONS,MOMENTUM INCORPORATED,437458,1600,598958541
BEIS,Met Office,2020-01-07,06 ACCOMMODATION,CHIEF FINANCIAL OFFICER,MORAY COUNCIL,437052,170.82,663755506
BEIS,Met Office,2020-01-20,06 ACCOMMODATION,CHIEF FINANCIAL OFFICER,MORAY COUNCIL,437636,2925,663755506
BEIS,Met Office,2020-01-07,06 ACCOMMODATION,CHIEF FINANCIAL OFFICER,MOUNT CHARLES GROUP LTD,436987,485.72,517116274
BEIS,Met Office,2020-01-22,11 SERVICES,CORPORATE,MOUNT CHARLES GROUP LTD,437683,1020.6,517116274
BEIS,Met Office,2020-01-30,11 SERVICES,CORPORATE,MOUNT CHARLES GROUP LTD,437957,1693.7,517116274
BEIS,Met Office,2020-01-30,11 SERVICES,CORPORATE,MOUNT CHARLES GROUP LTD,438056,1368.6,517116274
BEIS,Met Office,2020-01-30,06 ACCOMMODATION,CHIEF FINANCIAL OFFICER,MOUNT CHARLES GROUP LTD,438068,485.72,517116274
BEIS,Met Office,2020-01-08,12 INTERNATIONAL,OPERATIONS,MYACORN LTD,436985,7000,-
BEIS,Met Office,2020-01-23,07 EQUIPMENT,CHIEF FINANCIAL OFFICER,NATWEST COMMERCIAL CARDS DIVISION,437702,6752.57,N/A
BEIS,Met Office,2020-01-23,TRADE CREDITORS,OTHER,NATWEST COMMERCIAL CARDS DIVISION,437703,137320.31,N/A
BEIS,Met Office,2020-01-14,06 ACCOMMODATION,CHIEF FINANCIAL OFFICER,NESS ENGINEERING LTD,437320,1463.23,430188472
BEIS,Met Office,2020-01-07,11 SERVICES,TECHNOLOGY,NEXUS OPEN SYSTEMS LTD,436936,12840,723221673
BEIS,Met Office,2020-01-07,11 SERVICES,TECHNOLOGY,NEXUS OPEN SYSTEMS LTD,436936,12150,723221673
BEIS,Met Office,2020-01-15,11 SERVICES,GOVERNMENT SERVICES,NKALUBO SEVUME MICHAEL ZACHEUS,437297,2021,-
BEIS,Met Office,2020-01-15,11 SERVICES,GOVERNMENT SERVICES,NKALUBO SEVUME MICHAEL ZACHEUS,437298,3038,-
BEIS,Met Office,2020-01-07,06 ACCOMMODATION,CHIEF FINANCIAL OFFICER,NORSCOTT VENDING SERVICES LTD,437054,85,751402071
BEIS,Met Office,2020-01-20,06 ACCOMMODATION,CHIEF FINANCIAL OFFICER,NORSCOTT VENDING SERVICES LTD,437682,51.8,751402071
BEIS,Met Office,2020-01-15,11 SERVICES,OPERATIONS,NSSL GLOBAL LTD,9647,44.9,725151948
BEIS,Met Office,2020-01-15,11 SERVICES,OPERATIONS,NSSL GLOBAL LTD,9648,44.9,725151948
BEIS,Met Office,2020-01-08,06 ACCOMMODATION,CHIEF FINANCIAL OFFICER,OCS Group UK Limited,436988,164887.24,GB238034379
BEIS,Met Office,2020-01-15,06 ACCOMMODATION,CHIEF FINANCIAL OFFICER,Ocs Group Uk Ltd,437508,45.37,238034379
BEIS,Met Office,2020-01-08,04 CONTRACTORS,TECHNOLOGY,OUTSOURCE UK LIMITED,437232,2870,576118722
BEIS,Met Office,2020-01-08,04 CONTRACTORS,TECHNOLOGY,OUTSOURCE UK LIMITED,437233,1435,576118722
BEIS,Met Office,2020-01-08,04 CONTRACTORS,OPERATIONS,OUTSOURCE UK LIMITED,437234,5677.44,576118722
BEIS,Met Office,2020-01-08,04 CONTRACTORS,CHIEF FINANCIAL OFFICER,OUTSOURCE UK LIMITED,437235,9639.17,576118722
BEIS,Met Office,2020-01-08,04 CONTRACTORS,BUSINESS GROUP,OUTSOURCE UK LIMITED,437236,7643.16,576118722
BEIS,Met Office,2020-01-08,04 CONTRACTORS,STRATEGIC INVESTMENT,OUTSOURCE UK LIMITED,437237,943.58,576118722
BEIS,Met Office,2020-01-08,04 CONTRACTORS,STRATEGIC INVESTMENT,OUTSOURCE UK LIMITED,437238,7076.85,576118722
BEIS,Met Office,2020-01-14,04 CONTRACTORS,TECHNOLOGY,OUTSOURCE UK LIMITED,437471,7103.16,576118722
BEIS,Met Office,2020-01-14,04 CONTRACTORS,TECHNOLOGY,OUTSOURCE UK LIMITED,437472,6300,576118722
BEIS,Met Office,2020-01-14,04 CONTRACTORS,TECHNOLOGY,OUTSOURCE UK LIMITED,437473,7419.3,576118722
BEIS,Met Office,2020-01-14,04 CONTRACTORS,TECHNOLOGY,OUTSOURCE UK LIMITED,437474,10086.93,576118722
BEIS,Met Office,2020-01-14,04 CONTRACTORS,TECHNOLOGY,OUTSOURCE UK LIMITED,437475,688.17,576118722
BEIS,Met Office,2020-01-14,04 CONTRACTORS,TECHNOLOGY,OUTSOURCE UK LIMITED,437476,6750,576118722
BEIS,Met Office,2020-01-14,04 CONTRACTORS,STRATEGIC INVESTMENT,OUTSOURCE UK LIMITED,437477,5217.45,576118722
BEIS,Met Office,2020-01-14,04 CONTRACTORS,TECHNOLOGY,OUTSOURCE UK LIMITED,437478,6750,576118722
BEIS,Met Office,2020-01-14,04 CONTRACTORS,CHIEF FINANCIAL OFFICER,OUTSOURCE UK LIMITED,437479,5984.88,576118722
BEIS,Met Office,2020-01-14,04 CONTRACTORS,TECHNOLOGY,OUTSOURCE UK LIMITED,437480,8100,576118722
BEIS,Met Office,2020-01-14,04 CONTRACTORS,TECHNOLOGY,OUTSOURCE UK LIMITED,437481,7602.14,576118722
BEIS,Met Office,2020-01-14,04 CONTRACTORS,BUSINESS GROUP,OUTSOURCE UK LIMITED,437482,2173.9,576118722
BEIS,Met Office,2020-01-14,04 CONTRACTORS,TECHNOLOGY,OUTSOURCE UK LIMITED,437483,6451.65,576118722
BEIS,Met Office,2020-01-14,04 CONTRACTORS,TECHNOLOGY,OUTSOURCE UK LIMITED,437484,7392.5,576118722
BEIS,Met Office,2020-01-14,04 CONTRACTORS,CHIEF FINANCIAL OFFICER,OUTSOURCE UK LIMITED,437485,4521.79,576118722
BEIS,Met Office,2020-01-30,04 CONTRACTORS,STRATEGIC INVESTMENT,OUTSOURCE UK LIMITED,438078,8492.22,576118722
BEIS,Met Office,2020-01-30,04 CONTRACTORS,CHIEF FINANCIAL OFFICER,OUTSOURCE UK LIMITED,438079,5913.11,576118722
BEIS,Met Office,2020-01-30,04 CONTRACTORS,CORPORATE,OUTSOURCE UK LIMITED,438081,6650,576118722
BEIS,Met Office,2020-01-30,04 CONTRACTORS,BUSINESS GROUP,OUTSOURCE UK LIMITED,438082,7643.16,576118722
BEIS,Met Office,2020-01-30,04 CONTRACTORS,CHIEF FINANCIAL OFFICER,OUTSOURCE UK LIMITED,438083,5565.28,576118722
BEIS,Met Office,2020-01-30,04 CONTRACTORS,TECHNOLOGY,OUTSOURCE UK LIMITED,438084,11354.81,576118722
BEIS,Met Office,2020-01-30,04 CONTRACTORS,OPERATIONS,OUTSOURCE UK LIMITED,438085,8075,576118722
BEIS,Met Office,2020-01-30,04 CONTRACTORS,BUSINESS GROUP,OUTSOURCE UK LIMITED,438086,7499.96,576118722
BEIS,Met Office,2020-01-30,04 CONTRACTORS,TECHNOLOGY,OUTSOURCE UK LIMITED,438087,7311.87,576118722
BEIS,Met Office,2020-01-31,04 CONTRACTORS,TECHNOLOGY,OUTSOURCE UK LIMITED,438121,8967.45,576118722
BEIS,Met Office,2020-01-31,04 CONTRACTORS,TECHNOLOGY,OUTSOURCE UK LIMITED,438122,6533.28,576118722
BEIS,Met Office,2020-01-31,04 CONTRACTORS,TECHNOLOGY,OUTSOURCE UK LIMITED,438123,6300,576118722
BEIS,Met Office,2020-01-31,04 CONTRACTORS,TECHNOLOGY,OUTSOURCE UK LIMITED,438124,8625,576118722
BEIS,Met Office,2020-01-31,04 CONTRACTORS,STRATEGIC INVESTMENT,OUTSOURCE UK LIMITED,438125,5217.45,576118722
BEIS,Met Office,2020-01-31,04 CONTRACTORS,TECHNOLOGY,OUTSOURCE UK LIMITED,438126,6750,576118722
BEIS,Met Office,2020-01-31,04 CONTRACTORS,TECHNOLOGY,OUTSOURCE UK LIMITED,438127,8145.15,576118722
BEIS,Met Office,2020-01-31,04 CONTRACTORS,CHIEF FINANCIAL OFFICER,OUTSOURCE UK LIMITED,438128,8505.15,576118722
BEIS,Met Office,2020-01-31,04 CONTRACTORS,CHIEF FINANCIAL OFFICER,OUTSOURCE UK LIMITED,438129,7073.04,576118722
BEIS,Met Office,2020-01-31,04 CONTRACTORS,OPERATIONS,OUTSOURCE UK LIMITED,438130,7096.8,576118722
BEIS,Met Office,2020-01-31,04 CONTRACTORS,TECHNOLOGY,OUTSOURCE UK LIMITED,438131,8575.3,576118722
BEIS,Met Office,2020-01-24,STOCK,OPERATIONS,PHOTONIC SOLUTIONS LTD,437898,0,724212864
BEIS,Met Office,2020-01-24,STOCK,OPERATIONS,PHOTONIC SOLUTIONS LTD,437898,1300,724212864
BEIS,Met Office,2020-01-24,11 SERVICES,OPERATIONS,PHOTONIC SOLUTIONS LTD,437898,25,724212864
BEIS,Met Office,2020-01-08,13 MISCELLANEOUS,CHIEF FINANCIAL OFFICER,POSTURITE (UK) LTD,437046,63.23,583565114
BEIS,Met Office,2020-01-28,13 MISCELLANEOUS,CHIEF FINANCIAL OFFICER,POSTURITE (UK) LTD,437348,117.74,583565114
BEIS,Met Office,2020-01-28,13 MISCELLANEOUS,CHIEF FINANCIAL OFFICER,POSTURITE (UK) LTD,437455,63.23,583565114
BEIS,Met Office,2020-01-28,13 MISCELLANEOUS,CHIEF FINANCIAL OFFICER,POSTURITE (UK) LTD,437604,73.1,583565114
BEIS,Met Office,2020-01-28,13 MISCELLANEOUS,CHIEF FINANCIAL OFFICER,POSTURITE (UK) LTD,437605,432.11,583565114
BEIS,Met Office,2020-01-28,13 MISCELLANEOUS,CHIEF FINANCIAL OFFICER,POSTURITE (UK) LTD,437616,409.2,583565114
BEIS,Met Office,2020-01-28,13 MISCELLANEOUS,CHIEF FINANCIAL OFFICER,POSTURITE (UK) LTD,437677,36.55,583565114
BEIS,Met Office,2020-01-28,13 MISCELLANEOUS,CHIEF FINANCIAL OFFICER,POSTURITE (UK) LTD,437767,120.37,583565114
BEIS,Met Office,2020-01-28,13 MISCELLANEOUS,CHIEF FINANCIAL OFFICER,POSTURITE (UK) LTD,437852,51.66,583565114
BEIS,Met Office,2020-01-13,06 ACCOMMODATION,CHIEF FINANCIAL OFFICER,POWER NI ENERGY LTD,437390,21.89,617518142
BEIS,Met Office,2020-01-20,06 ACCOMMODATION,CHIEF FINANCIAL OFFICER,POWER NI ENERGY LTD,437671,723.09,617518142
BEIS,Met Office,2020-01-24,11 SERVICES,CORPORATE,PRECISE MEDIA MONITORING LTD,433974,1666.67,849092202
BEIS,Met Office,2020-01-24,11 SERVICES,CORPORATE,PRECISE MEDIA MONITORING LTD,435248,-1666.67,849092202
BEIS,Met Office,2020-01-07,08 SOFTWARE LICENCES,TECHNOLOGY,PRESENTATION CARTOGRAPHY LTD,436935,7775,-
BEIS,Met Office,2020-01-07,08 SOFTWARE LICENCES,TECHNOLOGY,PRESENTATION CARTOGRAPHY LTD,436935,1875,-
BEIS,Met Office,2020-01-31,08 SOFTWARE LICENCES,TECHNOLOGY,PRESENTATION CARTOGRAPHY LTD,438118,38000,-
BEIS,Met Office,2020-01-31,08 SOFTWARE LICENCES,TECHNOLOGY,PRESENTATION CARTOGRAPHY LTD,438118,7000,-
BEIS,Met Office,2020-01-31,08 SOFTWARE LICENCES,TECHNOLOGY,PRESENTATION CARTOGRAPHY LTD,438118,6600,-
BEIS,Met Office,2020-01-10,11 SERVICES,CORPORATE,PRESS ASSOCIATION LTD,434612,5999.14,590629516
BEIS,Met Office,2020-01-08,04 CONTRACTORS,TECHNOLOGY,QUALSERV CONSULTING LTD,437210,6461.9,719067718
BEIS,Met Office,2020-01-08,04 CONTRACTORS,TECHNOLOGY,QUALSERV CONSULTING LTD,437226,13072.05,719067718
BEIS,Met Office,2020-01-28,04 CONTRACTORS,OPERATIONS,QUALSERV CONSULTING LTD,437951,5708.88,719067718
BEIS,Met Office,2020-01-28,04 CONTRACTORS,CHIEF FINANCIAL OFFICER,QUALSERV CONSULTING LTD,437955,5250,719067718
BEIS,Met Office,2020-01-28,04 CONTRACTORS,STRATEGIC INVESTMENT,QUALSERV CONSULTING LTD,437956,9411.84,719067718
BEIS,Met Office,2020-01-28,04 CONTRACTORS,STRATEGIC INVESTMENT,QUALSERV CONSULTING LTD,437960,3846.37,719067718
BEIS,Met Office,2020-01-28,04 CONTRACTORS,TECHNOLOGY,QUALSERV CONSULTING LTD,437961,6840.26,719067718
BEIS,Met Office,2020-01-29,04 CONTRACTORS,STRATEGIC INVESTMENT,QUALSERV CONSULTING LTD,437988,7715.25,719067718
BEIS,Met Office,2020-01-29,04 CONTRACTORS,TECHNOLOGY,QUALSERV CONSULTING LTD,438001,11335.4,719067718
BEIS,Met Office,2020-01-29,04 CONTRACTORS,TECHNOLOGY,QUALSERV CONSULTING LTD,438015,5101.5,719067718
BEIS,Met Office,2020-01-29,04 CONTRACTORS,TECHNOLOGY,QUALSERV CONSULTING LTD,438026,8791.74,719067718
BEIS,Met Office,2020-01-29,04 CONTRACTORS,TECHNOLOGY,QUALSERV CONSULTING LTD,438027,9876.66,719067718
BEIS,Met Office,2020-01-30,04 CONTRACTORS,OPERATIONS,QUALSERV CONSULTING LTD,438063,2250,719067718
BEIS,Met Office,2020-01-08,06 ACCOMMODATION,CHIEF FINANCIAL OFFICER,QUANTUM MANAGEMENT (UK) LTD,437221,390,781819690
BEIS,Met Office,2020-01-22,04 CONTRACTORS,CORPORATE,QUINTON DAVIES LIMITED,437464,14437.5,291532892
BEIS,Met Office,2020-01-08,03 STAFF COSTS T&S,CHIEF FINANCIAL OFFICER,RAINBOW CITY TAXIS,436991,219.3,724295039
BEIS,Met Office,2020-01-29,03 STAFF COSTS T&S,CHIEF FINANCIAL OFFICER,RAINBOW CITY TAXIS,438002,40.7,724295039
BEIS,Met Office,2020-01-24,11 SERVICES,CHIEF FINANCIAL OFFICER,REDACTED PERSONAL DATA,434320,51,729159704
BEIS,Met Office,2020-01-24,11 SERVICES,CHIEF FINANCIAL OFFICER,REDACTED PERSONAL DATA,435746,-51,729159704
BEIS,Met Office,2020-01-07,06 ACCOMMODATION,CHIEF FINANCIAL OFFICER,REDACTED PERSONAL DATA,436971,200,N/A
BEIS,Met Office,2020-01-07,06 ACCOMMODATION,CHIEF FINANCIAL OFFICER,REDACTED PERSONAL DATA,437041,463,-
BEIS,Met Office,2020-01-13,06 ACCOMMODATION,CHIEF FINANCIAL OFFICER,REDACTED PERSONAL DATA,437213,300,-
BEIS,Met Office,2020-01-24,11 SERVICES,OPERATIONS,REDACTED PERSONAL DATA,437324,130.24,-
BEIS,Met Office,2020-01-27,06 ACCOMMODATION,CHIEF FINANCIAL OFFICER,REDACTED PERSONAL DATA,437950,2018,-
BEIS,Met Office,2020-01-27,06 ACCOMMODATION,CHIEF FINANCIAL OFFICER,REDACTED PERSONAL DATA,437950,1550,-
BEIS,Met Office,2020-01-29,11 SERVICES,BUSINESS GROUP,REDACTED PERSONAL DATA,438029,720,-
BEIS,Met Office,2020-01-30,11 SERVICES,CHIEF FINANCIAL OFFICER,REDACTED PERSONAL DATA,438071,340,729159704
BEIS,Met Office,2020-01-08,12 INTERNATIONAL,OPERATIONS,REDACTED PERSONAL DATA,9627,3012.35,-
BEIS,Met Office,2020-01-29,12 INTERNATIONAL,OPERATIONS,REDACTED PERSONAL DATA,9635,1416.87,-
BEIS,Met Office,2020-01-15,12 INTERNATIONAL,OPERATIONS,REDACTED PERSONAL DATA,9651,2397.38,-
BEIS,Met Office,2020-01-15,12 INTERNATIONAL,OPERATIONS,REDACTED PERSONAL DATA,9651,291.99,-
BEIS,Met Office,2020-01-08,04 CONTRACTORS,STRATEGIC INVESTMENT,REED,437093,6000,835515525
BEIS,Met Office,2020-01-08,04 CONTRACTORS,TECHNOLOGY,REED,437093,7106,835515525
BEIS,Met Office,2020-01-08,04 CONTRACTORS,TECHNOLOGY,REED,437093,5195.5,835515525
BEIS,Met Office,2020-01-23,04 CONTRACTORS,TECHNOLOGY,REED,437846,9237.15,835515525
BEIS,Met Office,2020-01-23,04 CONTRACTORS,TECHNOLOGY,REED,437859,9505.5,835515525
BEIS,Met Office,2020-01-28,04 CONTRACTORS,TECHNOLOGY,REED,437962,3778,835515525
BEIS,Met Office,2020-01-07,11 SERVICES,CHIEF FINANCIAL OFFICER,Reuters Ltd,437015,1785,397000555
BEIS,Met Office,2020-01-08,11 SERVICES,GOVERNMENT SERVICES,RIMES,9633,31523.99,-
BEIS,Met Office,2020-01-20,06 ACCOMMODATION,CHIEF FINANCIAL OFFICER,RIVER RIDGE,437603,82.67,176286083
BEIS,Met Office,2020-01-10,11 SERVICES,OPERATIONS,ROWE IT LTD,437219,20615,924964394
BEIS,Met Office,2020-01-09,11 SERVICES,GOVERNMENT SERVICES,ROWE IT LTD,437220,16198.75,924964394
BEIS,Met Office,2020-01-14,11 SERVICES,GOVERNMENT SERVICES,ROWE IT LTD,437325,7110,924964394
BEIS,Met Office,2020-01-21,11 SERVICES,GOVERNMENT SERVICES,ROWE IT LTD,437327,12565,924964394
BEIS,Met Office,2020-01-14,11 SERVICES,GOVERNMENT SERVICES,ROWE IT LTD,437328,8995,924964394
BEIS,Met Office,2020-01-10,11 SERVICES,GOVERNMENT SERVICES,ROWE IT LTD,437329,3107.5,924964394
BEIS,Met Office,2020-01-13,11 SERVICES,STRATEGIC INVESTMENT,ROWE IT LTD,437332,49612.5,924964394
BEIS,Met Office,2020-01-20,11 SERVICES,GOVERNMENT SERVICES,ROWE IT LTD,437659,30,924964394
BEIS,Met Office,2020-01-31,11 SERVICES,OPERATIONS,Royal Meteorological Society,438017,3850,-
BEIS,Met Office,2020-01-29,06 ACCOMMODATION,CHIEF FINANCIAL OFFICER,SADDLES & PADDLES EXETER LTD,437986,103.73,152264528
BEIS,Met Office,2020-01-16,06 ACCOMMODATION,CHIEF FINANCIAL OFFICER,SAFESTORE LTD,437498,2681.21,722887607
BEIS,Met Office,2020-01-14,06 ACCOMMODATION,CHIEF FINANCIAL OFFICER,SATELLITE MEDIAPORT SERVICES LTD,437355,397.8,-
BEIS,Met Office,2020-01-29,13 MISCELLANEOUS,CHIEF FINANCIAL OFFICER,Scottish Government,437965,13.6,888842551
BEIS,Met Office,2020-01-31,06 ACCOMMODATION,CHIEF FINANCIAL OFFICER,Scottish Government,438134,35846.48,888842551
BEIS,Met Office,2020-01-07,13 MISCELLANEOUS,CHIEF FINANCIAL OFFICER,SELECTA UK LTD,436993,177.58,581705924
BEIS,Met Office,2020-01-15,11 SERVICES,CHIEF FINANCIAL OFFICER,SELECTA UK LTD,437463,133.01,581705924
BEIS,Met Office,2020-01-22,10 EQUIPMENT MAINTENANCE,OPERATIONS,SERVELEC TECHNOLOGIES UK LTD,437766,17095,648280518
BEIS,Met Office,2020-01-07,06 ACCOMMODATION,CHIEF FINANCIAL OFFICER,Severn Trent Water Ltd,437073,61.1,486985565
BEIS,Met Office,2020-01-15,06 ACCOMMODATION,CHIEF FINANCIAL OFFICER,Severn Trent Water Ltd,437469,61.1,486985565
BEIS,Met Office,2020-01-15,06 ACCOMMODATION,CHIEF FINANCIAL OFFICER,Severn Trent Water Ltd,437470,30.81,486985565
BEIS,Met Office,2020-01-14,06 ACCOMMODATION,CHIEF FINANCIAL OFFICER,SHETLAND CLEANING SERVICES,437391,696.67,430028404
BEIS,Met Office,2020-01-07,11 SERVICES,CHIEF FINANCIAL OFFICER,Siemens Plc,437040,666.54,GB 927 317 516
BEIS,Met Office,2020-01-08,08 SOFTWARE LICENCES,TECHNOLOGY,SIGNAVIO GMBH,433978,69132.14,DE265675123
BEIS,Met Office,2020-01-22,11 SERVICES,CORPORATE,SODEXO MOT SOL UK  LTD (CHILDCARE RECEIPTS),437684,640.16,733644335
BEIS,Met Office,2020-01-31,11 SERVICES,OPERATIONS,SOFTCAT LTD,434800,963.72,491848503
BEIS,Met Office,2020-01-09,11 SERVICES,OPERATIONS,SOFTCAT LTD,437018,321.24,491848503
BEIS,Met Office,2020-01-28,08 SOFTWARE LICENCES,TECHNOLOGY,SOFTWARE BOX LIMITED,436428,1636.37,734245248
BEIS,Met Office,2020-01-28,08 SOFTWARE LICENCES,TECHNOLOGY,SOFTWARE BOX LIMITED,436428,1363.63,734245248
BEIS,Met Office,2020-01-20,08 SOFTWARE LICENCES,TECHNOLOGY,SOFTWARE BOX LIMITED,437509,352,734245248
BEIS,Met Office,2020-01-29,08 SOFTWARE LICENCES,TECHNOLOGY,SOFTWARE BOX LIMITED,437908,484,734245248
BEIS,Met Office,2020-01-14,11 SERVICES,OPERATIONS,SOFTWIRE TECHNOLOGY LIMITED,436939,2520,752 1253 57
BEIS,Met Office,2020-01-14,11 SERVICES,OPERATIONS,SOFTWIRE TECHNOLOGY LIMITED,437492,2520,752 1253 57
BEIS,Met Office,2020-01-09,03 STAFF COSTS T&S,OPERATIONS,SOLOMON & COMPANY (ST HELENA) PLC,437303,160,-
BEIS,Met Office,2020-01-14,04 CONTRACTORS,TECHNOLOGY,SOLOS CONSULTANTS LTD,437419,11713,812035476
BEIS,Met Office,2020-01-14,04 CONTRACTORS,TECHNOLOGY,SOLOS CONSULTANTS LTD,437420,10400,812035476
BEIS,Met Office,2020-01-14,04 CONTRACTORS,GOVERNMENT SERVICES,SOLOS CONSULTANTS LTD,437421,10374,812035476
BEIS,Met Office,2020-01-14,04 CONTRACTORS,GOVERNMENT SERVICES,SOLOS CONSULTANTS LTD,437422,3351.35,812035476
BEIS,Met Office,2020-01-14,04 CONTRACTORS,TECHNOLOGY,SOLOS CONSULTANTS LTD,437423,7733.76,812035476
BEIS,Met Office,2020-01-14,04 CONTRACTORS,TECHNOLOGY,SOLOS CONSULTANTS LTD,437424,12920.38,812035476
BEIS,Met Office,2020-01-14,04 CONTRACTORS,TECHNOLOGY,SOLOS CONSULTANTS LTD,437425,10868,812035476
BEIS,Met Office,2020-01-15,04 CONTRACTORS,CHIEF FINANCIAL OFFICER,SOLOS CONSULTANTS LTD,437426,5877.08,812035476
BEIS,Met Office,2020-01-14,04 CONTRACTORS,CORPORATE,SOLOS CONSULTANTS LTD,437427,7593.84,812035476
BEIS,Met Office,2020-01-14,04 CONTRACTORS,TECHNOLOGY,SOLOS CONSULTANTS LTD,437428,12720,812035476
BEIS,Met Office,2020-01-14,04 CONTRACTORS,STRATEGIC INVESTMENT,SOLOS CONSULTANTS LTD,437429,13260,812035476
BEIS,Met Office,2020-01-14,04 CONTRACTORS,TECHNOLOGY,SOLOS CONSULTANTS LTD,437430,7445.53,812035476
BEIS,Met Office,2020-01-14,04 CONTRACTORS,CORPORATE,SOLOS CONSULTANTS LTD,437431,8478.94,812035476
BEIS,Met Office,2020-01-14,04 CONTRACTORS,TECHNOLOGY,SOLOS CONSULTANTS LTD,437432,9690.29,812035476
BEIS,Met Office,2020-01-14,04 CONTRACTORS,TECHNOLOGY,SOLOS CONSULTANTS LTD,437433,5388.35,812035476
BEIS,Met Office,2020-01-14,04 CONTRACTORS,TECHNOLOGY,SOLOS CONSULTANTS LTD,437434,9360,812035476
BEIS,Met Office,2020-01-14,04 CONTRACTORS,TECHNOLOGY,SOLOS CONSULTANTS LTD,437435,11495,812035476
BEIS,Met Office,2020-01-14,04 CONTRACTORS,OPERATIONS,SOLOS CONSULTANTS LTD,437436,1797.68,812035476
BEIS,Met Office,2020-01-14,04 CONTRACTORS,TECHNOLOGY,SOLOS CONSULTANTS LTD,437437,2049.6,812035476
BEIS,Met Office,2020-01-14,04 CONTRACTORS,GOVERNMENT SERVICES,SOLOS CONSULTANTS LTD,437438,8100,812035476
BEIS,Met Office,2020-01-14,04 CONTRACTORS,TECHNOLOGY,SOLOS CONSULTANTS LTD,437439,8006.25,812035476
BEIS,Met Office,2020-01-14,04 CONTRACTORS,STRATEGIC INVESTMENT,SOLOS CONSULTANTS LTD,437440,3675,812035476
BEIS,Met Office,2020-01-14,04 CONTRACTORS,CORPORATE,SOLOS CONSULTANTS LTD,437441,999.16,812035476
BEIS,Met Office,2020-01-14,04 CONTRACTORS,STRATEGIC INVESTMENT,SOLOS CONSULTANTS LTD,437442,4680,812035476
BEIS,Met Office,2020-01-14,04 CONTRACTORS,TECHNOLOGY,SOLOS CONSULTANTS LTD,437443,6741.3,812035476
BEIS,Met Office,2020-01-14,04 CONTRACTORS,OPERATIONS,SOLOS CONSULTANTS LTD,437444,8863.7,812035476
BEIS,Met Office,2020-01-14,04 CONTRACTORS,OPERATIONS,SOLOS CONSULTANTS LTD,437444,314.88,812035476
BEIS,Met Office,2020-01-14,04 CONTRACTORS,CORPORATE,SOLOS CONSULTANTS LTD,437445,8395.43,812035476
BEIS,Met Office,2020-01-14,04 CONTRACTORS,OPERATIONS,SOLOS CONSULTANTS LTD,437446,2620.8,812035476
BEIS,Met Office,2020-01-14,04 CONTRACTORS,OPERATIONS,SOLOS CONSULTANTS LTD,437447,8787.5,812035476
BEIS,Met Office,2020-01-14,04 CONTRACTORS,TECHNOLOGY,SOLOS CONSULTANTS LTD,437452,9540,812035476
BEIS,Met Office,2020-01-14,04 CONTRACTORS,TECHNOLOGY,SOLOS CONSULTANTS LTD,437456,11050,812035476
BEIS,Met Office,2020-01-14,04 CONTRACTORS,TECHNOLOGY,SOLOS CONSULTANTS LTD,437457,6741.3,812035476
BEIS,Met Office,2020-01-14,04 CONTRACTORS,STRATEGIC INVESTMENT,SOLOS CONSULTANTS LTD,437459,3380,812035476
BEIS,Met Office,2020-01-14,04 CONTRACTORS,STRATEGIC INVESTMENT,SOLOS CONSULTANTS LTD,437461,7123.2,812035476
BEIS,Met Office,2020-01-21,04 CONTRACTORS,OPERATIONS,SOLOS CONSULTANTS LTD,437749,5094.3,812035476
BEIS,Met Office,2020-01-20,11 SERVICES,OPERATIONS,SOURCE COACHING CONSULTANCY,437679,1575,170422048
BEIS,Met Office,2020-01-24,11 SERVICES,CORPORATE,SOURCE COACHING CONSULTANCY,437878,2125,170422048
BEIS,Met Office,2020-01-09,06 ACCOMMODATION,CHIEF FINANCIAL OFFICER,SOUTH WEST WATER LTD,437242,4810.55,236873674
BEIS,Met Office,2020-01-13,06 ACCOMMODATION,CHIEF FINANCIAL OFFICER,SOUTH WEST WATER LTD,437389,418.25,236873674
BEIS,Met Office,2020-01-22,06 ACCOMMODATION,CHIEF FINANCIAL OFFICER,SOUTH WEST WATER LTD,437693,789.48,236873674
BEIS,Met Office,2020-01-31,08 SOFTWARE LICENCES,GOVERNMENT SERVICES,SOUTRON LIMITED,438069,12932,828299582
BEIS,Met Office,2020-01-13,11 SERVICES,BUSINESS GROUP,SPOKE (INTERACTIVE) LTD,437349,700,840156451
BEIS,Met Office,2020-01-23,13 MISCELLANEOUS,GOVERNMENT SERVICES,SPRINGER CUSTOMER SERVICE CENTER GMBH,437606,2080,209719094
BEIS,Met Office,2020-01-16,11 SERVICES,TECHNOLOGY,SSE CONTRACTING LTD,437518,9817.36,570118464
BEIS,Met Office,2020-01-10,11 SERVICES,CHIEF FINANCIAL OFFICER,ST JOHN AMBULANCE,436975,372,564553916
BEIS,Met Office,2020-01-09,06 ACCOMMODATION,CHIEF FINANCIAL OFFICER,STARK SOFTWARE INTERNATIONAL LTD,437024,4006.55,644372829
BEIS,Met Office,2020-01-21,06 ACCOMMODATION,CHIEF FINANCIAL OFFICER,STONE HILL PARK LTD,437668,35.14,196461180
BEIS,Met Office,2020-01-08,06 ACCOMMODATION,CHIEF FINANCIAL OFFICER,STRATUS INTEGRATED SERVICES LTD,437254,205083.46,781669484
BEIS,Met Office,2020-01-08,06 ACCOMMODATION,CHIEF FINANCIAL OFFICER,STRATUS INTEGRATED SERVICES LTD,437255,-78000,781669484
BEIS,Met Office,2020-01-16,11 SERVICES,CHIEF FINANCIAL OFFICER,SURE SOUTH ATLANTIC LTD,437450,563,-
BEIS,Met Office,2020-01-17,11 SERVICES,CHIEF FINANCIAL OFFICER,SURE SOUTH ATLANTIC LTD,437467,4743,-
BEIS,Met Office,2020-01-20,11 SERVICES,CHIEF FINANCIAL OFFICER,SURE SOUTH ATLANTIC LTD,437637,708.71,NOVATREG
BEIS,Met Office,2020-01-20,11 SERVICES,CHIEF FINANCIAL OFFICER,SURE SOUTH ATLANTIC LTD (ST HELENA),437608,587.5,30005
BEIS,Met Office,2020-01-07,11 SERVICES,CORPORATE,SWANTECH LOGISTICS LTD,436972,2944,769332401
BEIS,Met Office,2020-01-22,11 SERVICES,CHIEF FINANCIAL OFFICER,SWISSCOM (SCHWEIZ) AG,437717,87.32,-
BEIS,Met Office,2020-01-22,11 SERVICES,CHIEF FINANCIAL OFFICER,SWISSCOM (SCHWEIZ) AG,437718,87.32,-
BEIS,Met Office,2020-01-13,11 SERVICES,TECHNOLOGY,SYNTHESYS SYSTEMS ENGINEERS LTD,437365,1550,499309492
BEIS,Met Office,2020-01-20,11 SERVICES,CHIEF FINANCIAL OFFICER,TELEFONICA O2 UK LIMITED,437675,50,778603785
BEIS,Met Office,2020-01-29,11 SERVICES,OPERATIONS,TELIA FINLAND OYJ,21204,84.74,FI14756079
BEIS,Met Office,2020-01-29,11 SERVICES,OPERATIONS,TELIA FINLAND OYJ,21205,183.78,FI14756079
BEIS,Met Office,2020-01-07,06 ACCOMMODATION,CHIEF FINANCIAL OFFICER,TENNIE FACILITIES PROPERTY MANAGEMENT LTD,437034,165.72,982055803
BEIS,Met Office,2020-01-24,11 SERVICES,GOVERNMENT SERVICES,THE INTASAVE PARTNERSHIP INC,386265,20000,CH 1138324
BEIS,Met Office,2020-01-24,11 SERVICES,GOVERNMENT SERVICES,THE INTASAVE PARTNERSHIP INC,387718,-20000,CH 1138324
BEIS,Met Office,2020-01-24,11 SERVICES,OPERATIONS,THE KNOWLEDGE ACADEMY LIMITED,426506,1300,GB970667487
BEIS,Met Office,2020-01-24,11 SERVICES,OPERATIONS,THE KNOWLEDGE ACADEMY LIMITED,426506,1788,GB970667487
BEIS,Met Office,2020-01-24,11 SERVICES,OPERATIONS,THE KNOWLEDGE ACADEMY LIMITED,426900,-1000,GB970667487
BEIS,Met Office,2020-01-24,11 SERVICES,OPERATIONS,THE KNOWLEDGE ACADEMY LIMITED,426900,-1788,GB970667487
BEIS,Met Office,2020-01-24,11 SERVICES,OPERATIONS,THE KNOWLEDGE ACADEMY LIMITED,428009,-300,GB970667487
BEIS,Met Office,2020-01-20,13 MISCELLANEOUS,CORPORATE,THOMSON REUTERS (PROFESSIONAL) UK LTD,437488,9374.4,900548743
BEIS,Met Office,2020-01-22,08 SOFTWARE LICENCES,OTHER,TIMEWATCH PLC,437769,458.33,461555250
BEIS,Met Office,2020-01-21,11 SERVICES,SCIENCE,TINO EVENTI,21011,1881.6,IT04180490262
BEIS,Met Office,2020-01-14,06 ACCOMMODATION,GOVERNMENT SERVICES,Trinity House,437386,485,243120414
BEIS,Met Office,2020-01-14,06 ACCOMMODATION,GOVERNMENT SERVICES,Trinity House,437386,12,243120414
BEIS,Met Office,2020-01-14,06 ACCOMMODATION,GOVERNMENT SERVICES,Trinity House,437387,485,243120414
BEIS,Met Office,2020-01-14,06 ACCOMMODATION,GOVERNMENT SERVICES,Trinity House,437387,12,243120414
BEIS,Met Office,2020-01-20,07 EQUIPMENT,OPERATIONS,Trinity House,437669,3627.96,243120414
BEIS,Met Office,2020-01-20,07 EQUIPMENT,OPERATIONS,Trinity House,437669,4705.47,243120414
BEIS,Met Office,2020-01-20,07 EQUIPMENT,OPERATIONS,Trinity House,437669,3271.38,243120414
BEIS,Met Office,2020-01-14,06 ACCOMMODATION,CHIEF FINANCIAL OFFICER,TULLY FARM HOLDINGS T/A CONTRACT SERVICES,437135,2727,872632707
BEIS,Met Office,2020-01-14,06 ACCOMMODATION,CHIEF FINANCIAL OFFICER,TULLY FARM HOLDINGS T/A CONTRACT SERVICES,437135,2095,872632707
BEIS,Met Office,2020-01-14,06 ACCOMMODATION,CHIEF FINANCIAL OFFICER,TULLY FARM HOLDINGS T/A CONTRACT SERVICES,437135,260,872632707
BEIS,Met Office,2020-01-14,06 ACCOMMODATION,CHIEF FINANCIAL OFFICER,TULLY FARM HOLDINGS T/A CONTRACT SERVICES,437135,186,872632707
BEIS,Met Office,2020-01-14,06 ACCOMMODATION,CHIEF FINANCIAL OFFICER,TULLY FARM HOLDINGS T/A CONTRACT SERVICES,437135,1050,872632707
BEIS,Met Office,2020-01-10,11 SERVICES,GOVERNMENT SERVICES,UKRI,437356,21716.69,GB287461957
BEIS,Met Office,2020-01-07,11 SERVICES,GOVERNMENT SERVICES,ULTRA ELECTRONICS LTD NUCLEAR CONTROL SYSTEMS,437083,217332.25,123340754
BEIS,Met Office,2020-01-07,11 SERVICES,GOVERNMENT SERVICES,ULTRA ELECTRONICS LTD NUCLEAR CONTROL SYSTEMS,437084,9575.47,123340754
BEIS,Met Office,2020-01-15,06 ACCOMMODATION,CHIEF FINANCIAL OFFICER,University Of Birmingham,437499,327.36,729856187
BEIS,Met Office,2020-01-24,13 MISCELLANEOUS,OTHER,UNIVERSITY OF CAMBRIDGE,428838,40000,214222124
BEIS,Met Office,2020-01-24,13 MISCELLANEOUS,OTHER,UNIVERSITY OF CAMBRIDGE,430543,-40000,214222124
BEIS,Met Office,2020-01-21,13 MISCELLANEOUS,SCIENCE,UNIVERSITY OF CAMBRIDGE,434132,1250,214222124
BEIS,Met Office,2020-01-24,13 MISCELLANEOUS,OTHER,UNIVERSITY OF EXETER,429475,-68541.64,142047795
BEIS,Met Office,2020-01-24,13 MISCELLANEOUS,OTHER,UNIVERSITY OF EXETER,430499,68541.64,142047795
BEIS,Met Office,2020-01-24,13 MISCELLANEOUS,OTHER,UNIVERSITY OF EXETER,434005,57498.14,142047795
BEIS,Met Office,2020-01-27,11 SERVICES,GOVERNMENT SERVICES,UNIVERSITY OF EXETER,435062,68049.67,142047795
BEIS,Met Office,2020-01-24,13 MISCELLANEOUS,OTHER,UNIVERSITY OF EXETER,435353,-57498.14,142047795
BEIS,Met Office,2020-01-10,11 SERVICES,SCIENCE,UNIVERSITY OF EXETER,437212,18500,142047795
BEIS,Met Office,2020-01-10,11 SERVICES,OPERATIONS,UNIVERSITY OF EXETER,437239,4633,142047795
BEIS,Met Office,2020-01-20,11 SERVICES,GOVERNMENT SERVICES,UNIVERSITY OF EXETER,437350,77481.87,142047795
BEIS,Met Office,2020-01-15,13 MISCELLANEOUS,SCIENCE,University Of Leeds,437519,1250,613451470
BEIS,Met Office,2020-01-22,11 SERVICES,GOVERNMENT SERVICES,University Of Leeds,437696,3164.75,613451470
BEIS,Met Office,2020-01-21,11 SERVICES,GOVERNMENT SERVICES,UNIVERSITY OF OXFORD,433354,22708.42,125506730
BEIS,Met Office,2020-01-23,11 SERVICES,GOVERNMENT SERVICES,UNIVERSITY OF OXFORD,437665,17008.36,125506730
BEIS,Met Office,2020-01-30,13 MISCELLANEOUS,SCIENCE,UNIVERSITY OF OXFORD,437952,1000,125506730
BEIS,Met Office,2020-01-28,13 MISCELLANEOUS,OTHER,University Of Reading,434711,18058.17,200012659
BEIS,Met Office,2020-01-28,13 MISCELLANEOUS,OTHER,University Of Reading,434937,-18058.17,200012659
BEIS,Met Office,2020-01-08,11 SERVICES,GOVERNMENT SERVICES,University Of Reading,436562,60000,200012659
BEIS,Met Office,2020-01-08,13 MISCELLANEOUS,SCIENCE,University Of Reading,437229,1250,200012659
BEIS,Met Office,2020-01-16,11 SERVICES,GOVERNMENT SERVICES,University Of Reading,437489,60000,200012659
BEIS,Met Office,2020-01-20,11 SERVICES,GOVERNMENT SERVICES,University Of Reading,437490,135000,200012659
BEIS,Met Office,2020-01-24,11 SERVICES,GOVERNMENT SERVICES,University Of Reading,437491,61886.37,200012659
BEIS,Met Office,2020-01-24,13 MISCELLANEOUS,SCIENCE,University Of Reading,437868,1000,200012659
BEIS,Met Office,2020-01-24,13 MISCELLANEOUS,SCIENCE,University Of Reading,437875,1262.5,200012659
BEIS,Met Office,2020-01-28,13 MISCELLANEOUS,SCIENCE,University Of Reading,437879,333.33,200012659
BEIS,Met Office,2020-01-14,13 MISCELLANEOUS,GOVERNMENT SERVICES,University Of Surrey,434620,1687.5,688953065
BEIS,Met Office,2020-01-14,13 MISCELLANEOUS,GOVERNMENT SERVICES,University Of Surrey,434622,-2937.5,688953065
BEIS,Met Office,2020-01-14,13 MISCELLANEOUS,GOVERNMENT SERVICES,University Of Surrey,436378,1250,688953065
BEIS,Met Office,2020-01-29,08 SOFTWARE LICENCES,TECHNOLOGY,URBAN AIRSHIP INC.,437906,154,-
BEIS,Met Office,2020-01-22,11 SERVICES,GOVERNMENT SERVICES,VAISALA LTD,437754,78677.54,336100011
BEIS,Met Office,2020-01-22,11 SERVICES,GOVERNMENT SERVICES,VAISALA LTD,437755,19170.8,336100011
BEIS,Met Office,2020-01-08,STOCK,OPERATIONS,VAISALA OYJ,20997,0,FI01244162
BEIS,Met Office,2020-01-08,STOCK,OPERATIONS,VAISALA OYJ,20997,6917.64,FI01244162
BEIS,Met Office,2020-01-07,11 SERVICES,CHIEF FINANCIAL OFFICER,VIRGIN MEDIA BUSINESS,437053,18500,591819014
BEIS,Met Office,2020-01-08,04 CONTRACTORS,TECHNOLOGY,WA CONSULTANTS LTD,437082,10222.95,876328977
BEIS,Met Office,2020-01-08,04 CONTRACTORS,CORPORATE,WA CONSULTANTS LTD,437214,876.42,876328977
BEIS,Met Office,2020-01-08,04 CONTRACTORS,CHIEF FINANCIAL OFFICER,WA CONSULTANTS LTD,437215,6512,876328977
BEIS,Met Office,2020-01-08,04 CONTRACTORS,TECHNOLOGY,WA CONSULTANTS LTD,437216,10260,876328977
BEIS,Met Office,2020-01-08,04 CONTRACTORS,TECHNOLOGY,WA CONSULTANTS LTD,437217,10260,876328977
BEIS,Met Office,2020-01-13,04 CONTRACTORS,CHIEF FINANCIAL OFFICER,WA CONSULTANTS LTD,437288,6631.95,876328977
BEIS,Met Office,2020-01-10,04 CONTRACTORS,CHIEF FINANCIAL OFFICER,WA CONSULTANTS LTD,437311,3825,876328977
BEIS,Met Office,2020-01-13,04 CONTRACTORS,TECHNOLOGY,WA CONSULTANTS LTD,437312,14625,876328977
BEIS,Met Office,2020-01-13,04 CONTRACTORS,TECHNOLOGY,WA CONSULTANTS LTD,437313,8459.44,876328977
BEIS,Met Office,2020-01-13,04 CONTRACTORS,TECHNOLOGY,WA CONSULTANTS LTD,437314,9270,876328977
BEIS,Met Office,2020-01-13,04 CONTRACTORS,STRATEGIC INVESTMENT,WA CONSULTANTS LTD,437315,6343.54,876328977
BEIS,Met Office,2020-01-13,04 CONTRACTORS,CHIEF FINANCIAL OFFICER,WA CONSULTANTS LTD,437316,6090,876328977
BEIS,Met Office,2020-01-13,04 CONTRACTORS,TECHNOLOGY,WA CONSULTANTS LTD,437317,6129.3,876328977
BEIS,Met Office,2020-01-13,04 CONTRACTORS,STRATEGIC INVESTMENT,WA CONSULTANTS LTD,437318,5834.14,876328977
BEIS,Met Office,2020-01-20,04 CONTRACTORS,SCIENCE,WA CONSULTANTS LTD,437644,7630,876328977
BEIS,Met Office,2020-01-21,04 CONTRACTORS,GOVERNMENT SERVICES,WA CONSULTANTS LTD,437751,2159.15,876328977
BEIS,Met Office,2020-01-21,04 CONTRACTORS,GOVERNMENT SERVICES,WA CONSULTANTS LTD,437751,3510.85,876328977
BEIS,Met Office,2020-01-21,04 CONTRACTORS,GOVERNMENT SERVICES,WA CONSULTANTS LTD,437752,1890,876328977
BEIS,Met Office,2020-01-31,04 CONTRACTORS,GOVERNMENT SERVICES,WA CONSULTANTS LTD,438011,1661,876328977
BEIS,Met Office,2020-01-29,04 CONTRACTORS,GOVERNMENT SERVICES,WA CONSULTANTS LTD,438012,2178,876328977
BEIS,Met Office,2020-01-29,04 CONTRACTORS,GOVERNMENT SERVICES,WA CONSULTANTS LTD,438013,15854.2,876328977
BEIS,Met Office,2020-01-29,04 CONTRACTORS,TECHNOLOGY,WA CONSULTANTS LTD,438014,9270,876328977
BEIS,Met Office,2020-01-30,04 CONTRACTORS,CORPORATE,WA CONSULTANTS LTD,438062,5258.52,876328977
BEIS,Met Office,2020-01-22,11 SERVICES,CHIEF FINANCIAL OFFICER,WAGSTAFF GROUP,437750,2568,-
BEIS,Met Office,2020-01-21,11 SERVICES,GOVERNMENT SERVICES,WALNUT UNLIMITED LIMITED,437648,2825,648857968
BEIS,Met Office,2020-01-07,11 SERVICES,CHIEF FINANCIAL OFFICER,WEBEX COMMUNICATIONS UK LTD,437010,320.98,815974302
BEIS,Met Office,2020-01-28,11 SERVICES,CHIEF FINANCIAL OFFICER,WEBEX COMMUNICATIONS UK LTD,437953,281.16,815974302
BEIS,Met Office,2020-01-10,10 EQUIPMENT MAINTENANCE,OPERATIONS,WINDSPEED LIMITED,437319,32,800755256
BEIS,Met Office,2020-01-10,10 EQUIPMENT MAINTENANCE,OPERATIONS,WINDSPEED LIMITED,437319,855,800755256
BEIS,Met Office,2020-01-07,11 SERVICES,TECHNOLOGY,WIREFAST LTD,437078,216.17,749536001
BEIS,Met Office,2020-01-07,11 SERVICES,TECHNOLOGY,WIREFAST LTD,437079,5952.62,749536001
BEIS,Met Office,2020-01-14,11 SERVICES,CHIEF FINANCIAL OFFICER,XPEDITE SYSTEMS (UK) LTD,437088,100,599016994
BEIS,Met Office,2020-01-10,11 SERVICES,CHIEF FINANCIAL OFFICER,XUPER,437090,238.5,316677090
BEIS,Met Office,2020-01-10,11 SERVICES,CHIEF FINANCIAL OFFICER,XUPER,437090,565.5,316677090
BEIS,Met Office,2020-01-10,11 SERVICES,CHIEF FINANCIAL OFFICER,XUPER,437090,900,316677090
BEIS,Met Office,2020-01-10,11 SERVICES,CHIEF FINANCIAL OFFICER,XUPER,437090,795,316677090
BEIS,Met Office,2020-01-10,11 SERVICES,CHIEF FINANCIAL OFFICER,XUPER,437090,795,316677090
BEIS,Met Office,2020-01-10,11 SERVICES,CHIEF FINANCIAL OFFICER,XUPER,437090,5382.75,316677090
BEIS,Met Office,2020-01-10,11 SERVICES,CHIEF FINANCIAL OFFICER,XUPER,437090,795,316677090
BEIS,Met Office,2020-01-10,11 SERVICES,CHIEF FINANCIAL OFFICER,XUPER,437090,795,316677090
BEIS,Met Office,2020-01-10,11 SERVICES,CHIEF FINANCIAL OFFICER,XUPER,437090,786,316677090
BEIS,Met Office,2020-01-10,11 SERVICES,CHIEF FINANCIAL OFFICER,XUPER,437090,735,316677090
BEIS,Met Office,2020-01-10,11 SERVICES,CHIEF FINANCIAL OFFICER,XUPER,437090,795,316677090
BEIS,Met Office,2020-01-10,11 SERVICES,CHIEF FINANCIAL OFFICER,XUPER,437090,450,316677090
BEIS,Met Office,2020-01-15,10 EQUIPMENT MAINTENANCE,OPERATIONS,YOUNG CALIBRATION LIMITED,437520,80,673900720
BEIS,Met Office,2020-01-15,11 SERVICES,OPERATIONS,YOUNG CALIBRATION LIMITED,437520,10,673900720
